{"text_format":"1","workbook":"xlsx","n_sheets":5,"sheets":["FORMULAIRE","PRODUIT","ENTRER","SORTIE","SOLDE"],"not_rendered":{"charts":0,"images":1,"macros":1,"external_links":0,"defined_names":3,"comments":0,"pivot_tables":0},"unopened":[],"bounds":{"document_bytes":16777216,"sheet_cells":100000,"rows_first":2000,"rows_last":500,"rows_between":2000,"halvings":0,"cell_chars":16384,"cell_head_chars":4096},"cells_cut":0,"cells_raw":0,"read":"whole","date_system":"1900"}

{"sheet":"FORMULAIRE","index":0,"n_rows":0,"n_cols":0,"rows_kept":0,"cut":false,"hidden":false,"merged":[]}

{"sheet":"PRODUIT","index":1,"n_rows":72,"n_cols":10,"rows_kept":72,"cut":false,"hidden":false,"merged":[]}
["TYPE","NOM","DESCRIPTION","FORMAT","GRAMMAGE","ZONE","NIVEAUX"]
["Autocopiant","IDEM","CB blanc 60 gr 45 x 64","45 x 64",60]
["Autocopiant","IDEM","CB bleu 60 gr 45 x 64","45 x 64",60,null,null,null,"68","52"]
["Autocopiant","IDEM","CB vert 60 gr 45 x 64","45 x 64",60,null,null,null,"45","64"]
["Autocopiant","IDEM","CF blanc 125 gr 45 x 64","45 x 64",60,null,null,null,52,69]
["Autocopiant","IDEM","CF bleu 60 gr 45 x 64","45 x 64",60]
["Autocopiant","IDEM","CF rose 60 gr 45 x 64","45 x 64",60]
["Autocopiant","IDEM","CF vert 60 gr 45 x 64","45 x 64",60]
["Autocopiant","IDEM","CFB blanc 60 gr 45 x 64","45 x 64",60]
["Autocopiant","IDEM","CFB bleu 60 gr 45 x 64","45 x 64",60]
["Autocopiant","IDEM","CFB rose 60 gr 45 x 64","45 x 64",60]
["Brillant","Mago Star","350 gr 52X74 (paquet)","52 x 74",350]
["Brillant","Novatech (antalis)","170 gr 45 x 64 (Paquet)","45 x 64",170]
["Brillant","Tom et Otto","130 gr 52X72 (Cube)","52 x 72",130]
["Offset","Cocoon offset (antalis)","350 gr 45 x 64 (Paquet)","45 x 64",350]
["Offset","coloraction popset Amande","120 gr 45 x 64 (Paquet)","45 x 64",120]
["Offset","coloraction popset Iceberg","80 gr 45 x 64 (Paquet)","45 x 64",80]
["Offset","coloraction popset Sevilla","80 gr 45 x 64 (Paquet)","45 x 64",80]
["Offset","coloration vert","160 gr 45 x 64 (Paquet)","45 x 64",160]
["Offset","Opale","Opale dialogue 90gr 45 x 64 ","45 x 64",90]
["Offset","Opale","Opale 80 gr 90 x 64 ","90 x 64",80]
["Offset","Print speed","90 gr 45 x 64 (Cube )","45 x 64",90]
["Offset","Print speed","90 gr 63 x 88 (Paquet)","63 x 88",90]
["Papier numérique","Digicolor SRA3 100gr BLANC","Digicolor SRA3 100gr Antalis","32 x 45",100]
["Papier numérique","Digicolor SRA3 120gr blanc","Digicolor SRA3 120gr Antalis","32 x 45",120]
[null,null,null,null,null,null,null,null,"52","72"]
[null,null,null,{"$f":"CONCATENATE(I27,\" \",\"x\", \" \", J27)","v":" x "}]
[null,null,null," x "]
[null,null,null," x "]
[null,null,null," x "]
[null,null,null," x "]
[null,null,null," x "]
[null,null,null," x "]
[null,null,null," x "]
[null,null,null," x "]
[null,null,null," x "]
[null,null,null," x "]
[null,null,null," x "]
[null,null,null," x "]
[null,null,null," x "]
[null,null,null," x "]
[null,null,null," x "]
[null,null,null," x "]
[null,null,null," x "]
[null,null,null," x "]
[null,null,null," x "]
[null,null,null," x "]
[null,null,null," x "]
[null,null,null," x "]
[null,null,null," x "]
[null,null,null," x "]
[null,null,null," x "]
[null,null,null," x "]
[null,null,null," x "]
[null,null,null," x "]
[null,null,null," x "]
[null,null,null," x "]
[null,null,null," x "]
[null,null,null," x "]
[null,null,null," x "]
[null,null,null," x "]
[null,null,null," x "]
[null,null,null," x "]
[null,null,null," x "]
[null,null,null," x "]
[null,null,null," x "]
[null,null,null,{"$f":"CONCATENATE(I67,\" \",\"x\", \" \", J67)","v":" x "}]
[null,null,null," x "]
[null,null,null," x "]
[null,null,null," x "]
[null,null,null," x "]
[null,null,null," x "]

{"sheet":"ENTRER","index":2,"n_rows":3,"n_cols":6,"rows_kept":3,"cut":false,"hidden":false,"merged":[]}
["TYPE","NOM","QUANTITE","RECEPTIONISTE","DATE.RECEPCION","NOM ENTRER"]
["Autocopiant","CB blanc 60 gr 45 x 64","500","jeremy","06/01/2017","bibi"]
["Autocopiant","CB blanc 60 gr 45 x 64","500","JEREMY","25/12/2016","BIBI"]

{"sheet":"SORTIE","index":3,"n_rows":1,"n_cols":6,"rows_kept":1,"cut":false,"hidden":false,"merged":[]}
["TYPE","NOM","QUANTITE","CLIENT","DATE.SORTIE","NOM DE SORTIE"]

{"sheet":"SOLDE","index":4,"n_rows":65536,"n_cols":13,"rows_kept":4500,"cut":true,"hidden":false,"merged":[],"bounds":{"rows_first":2000,"rows_last":500,"rows_between":2000,"halvings":0}}
["TYPE","NOM","GRAMMAGE","DESCRIPTION","FORMAT","QUANTITE","ZONE","NIVEAUX","Colonne1","Colonne2","Colonne3"]
["Autocopiant","IDEM",60,"CB blanc 60 gr 45 x 64","45 x 64",{"$f":"CONCATENATE(M2, \" \", \"exemplaires\")","v":"456 exemplaires"},null,null,null,null,560,null,456]
["Autocopiant","IDEM",60,"CB bleu 60 gr 45 x 64","45 x 64",{"$f":"CONCATENATE(M3, \" \", \"exemplaires\")","v":"541 exemplaires"},null,null,null,null,null,null,541]
["Autocopiant","IDEM",60,"CB vert 60 gr 45 x 64","45 x 64","65 exemplaires",null,null,"45","64",null,null,65]
["Autocopiant","IDEM",60,"CF blanc 125 gr 45 x 64","45 x 64","4165 exemplaires",null,null,null,null,null,null,4165]
["Autocopiant","IDEM",60,"CF bleu 60 gr 45 x 64","45 x 64","41 exemplaires",null,null,null,null,null,null,41]
["Autocopiant","IDEM",60,"CF rose 60 gr 45 x 64","45 x 64","56 exemplaires",null,null,null,null,null,null,56]
["Autocopiant","IDEM",60,"CF vert 60 gr 45 x 64","45 x 64","65 exemplaires",null,null,null,null,null,null,65]
["Autocopiant","IDEM",60,"CFB blanc 60 gr 45 x 64","45 x 64","1 exemplaires",null,null,null,null,null,null,1]
["Autocopiant","IDEM",60,"CFB bleu 60 gr 45 x 64","45 x 64","65 exemplaires",null,null,null,null,null,null,65]
["Autocopiant","IDEM",60,"CFB rose 60 gr 45 x 64","45 x 64","13 exemplaires",null,null,null,null,null,null,13]
["Brillant","Mago Star",350,"350 gr 52X74 (paquet)","52 x 74","4 exemplaires",null,null,null,null,null,null,4]
["Brillant","Novatech (antalis)",170,"170 gr 45 x 64 (Paquet)","45 x 64","946 exemplaires",null,null,null,null,null,null,946]
["Brillant","Tom et Otto",130,"130 gr 52X72 (Cube)","52 x 72","1 exemplaires",null,null,null,null,null,null,1]
["Offset","Cocoon offset (antalis)",350,"350 gr 45 x 64 (Paquet)","45 x 64","32 exemplaires",null,null,null,null,null,null,32]
["Offset","coloraction popset Amande",120,"120 gr 45 x 64 (Paquet)","45 x 64","14641 exemplaires",null,null,null,null,null,null,14641]
["Offset","coloraction popset Iceberg",80,"80 gr 45 x 64 (Paquet)","45 x 64","31 exemplaires",null,null,null,null,null,null,31]
["Offset","coloraction popset Sevilla",80,"80 gr 45 x 64 (Paquet)","45 x 64","3 exemplaires",null,null,null,null,null,null,3]
["Offset","coloration vert",160,"160 gr 45 x 64 (Paquet)","45 x 64","4 exemplaires",null,null,null,null,null,null,4]
["Offset","Opale",90,"Opale dialogue 90gr 45 x 64 ","45 x 64","41 exemplaires",null,null,null,null,null,null,41]
["Offset","Opale",80,"Opale 80 gr 90 x 64 ","90 x 64","3 exemplaires",null,null,null,null,null,null,3]
["Offset","Print speed",90,"90 gr 45 x 64 (Cube )","45 x 64","1 exemplaires",null,null,null,null,null,null,1]
["Offset","Print speed",90,"90 gr 63 x 88 (Paquet)","63 x 88","64 exemplaires",null,null,null,null,null,null,64]
["Papier numérique","Digicolor SRA3 100gr BLANC",100,"Digicolor SRA3 100gr Antalis","32 x 45","65 exemplaires",null,null,null,null,null,null,65]
["Papier numérique","Digicolor SRA3 120gr blanc",120,"Digicolor SRA3 120gr Antalis","32 x 45","149 exemplaires",null,null,null,null,null,null,149]
["tt",null,"250",null,{"$f":"CONCATENATE(I26,\" \",\"x\", \" \", J26)","v":"52 x 72"},"84 exemplaires","1","3","52","72",null,null,84]
[null,null,null,null," x "]
[null,null,null,null," x "]
[null,null,null,null," x "]
[null,null,null,null," x "]
[null,null,null,null," x "]
[null,null,null,null," x "]
[null,null,null,null," x "]
[null,null,null,null," x "]
[null,null,null,null," x "]
[null,null,null,null," x "]
[null,null,null,null," x "]
[null,null,null,null," x "]
[null,null,null,null," x "]
[null,null,null,null," x "]
[null,null,null,null," x "]
[null,null,null,null," x "]
[null,null,null,null," x "]
[null,null,null,null," x "]
[null,null,null,null," x "]
[null,null,null,null," x "]
[null,null,null,null," x "]
[null,null,null,null," x "]
[null,null,null,null," x "]
[null,null,null,null," x "]
[null,null,null,null," x "]
[null,null,null,null," x "]
[null,null,null,null," x "]
[null,null,null,null," x "]
[null,null,null,null," x "]
[null,null,null,null," x "]
[null,null,null,null," x "]
[null,null,null,null," x "]
[null,null,null,null," x "]
[null,null,null,null," x "]
[null,null,null,null," x "]
[null,null,null,null," x "]
[null,null,null,null," x "]
[null,null,null,null," x "]
[null,null,null,null," x "]
[null,null,null,null,{"$f":"CONCATENATE(I66,\" \",\"x\", \" \", J66)","v":" x "}]
[null,null,null,null," x "]
[null,null,null,null," x "]
[null,null,null,null," x "]
[null,null,null,null," x "]
[null,null,null,null," x "]
[null,null,null,null," x "]
[null,null,null,null," x "]
[null,null,null,null," x "]
[null,null,null,null," x "]
[null,null,null,null," x "]
[null,null,null,null," x "]
[null,null,null,null," x "]
[null,null,null,null," x "]
[null,null,null,null," x "]
[null,null,null,null," x "]
[null,null,null,null," x "]
[null,null,null,null," x "]
[null,null,null,null," x "]
[null,null,null,null," x "]
[null,null,null,null," x "]
[null,null,null,null," x "]
[null,null,null,null," x "]
[null,null,null,null," x "]
[null,null,null,null," x "]
[null,null,null,null," x "]
[null,null,null,null," x "]
[null,null,null,null," x "]
[null,null,null,null," x "]
[null,null,null,null," x "]
[null,null,null,null," x "]
[null,null,null,null," x "]
[null,null,null,null," x "]
[null,null,null,null," x "]
[null,null,null,null," x "]
[null,null,null,null," x "]
[null,null,null,null," x "]
[null,null,null,null," x "]
[null,null,null,null," x "]
[null,null,null,null," x "]
[null,null,null,null," x "]
[null,null,null,null," x "]
[null,null,null,null," x "]
[null,null,null,null," x "]
[null,null,null,null," x "]
[null,null,null,null," x "]
[null,null,null,null," x "]
[null,null,null,null," x "]
[null,null,null,null," x "]
[null,null,null,null," x "]
[null,null,null,null," x "]
[null,null,null,null," x "]
[null,null,null,null," x "]
[null,null,null,null," x "]
[null,null,null,null," x "]
[null,null,null,null," x "]
[null,null,null,null," x "]
[null,null,null,null," x "]
[null,null,null,null," x "]
[null,null,null,null," x "]
[null,null,null,null," x "]
[null,null,null,null," x "]
[null,null,null,null," x "]
[null,null,null,null," x "]
[null,null,null,null,{"$f":"CONCATENATE(I130,\" \",\"x\", \" \", J130)","v":" x "}]
[null,null,null,null," x "]
[null,null,null,null," x "]
[null,null,null,null," x "]
[null,null,null,null," x "]
[null,null,null,null," x "]
[null,null,null,null," x "]
[null,null,null,null," x "]
[null,null,null,null," x "]
[null,null,null,null," x "]
[null,null,null,null," x "]
[null,null,null,null," x "]
[null,null,null,null," x "]
[null,null,null,null," x "]
[null,null,null,null," x "]
[null,null,null,null," x "]
[null,null,null,null," x "]
[null,null,null,null," x "]
[null,null,null,null," x "]
[null,null,null,null," x "]
[null,null,null,null," x "]
[null,null,null,null," x "]
[null,null,null,null," x "]
[null,null,null,null," x "]
[null,null,null,null," x "]
[null,null,null,null," x "]
[null,null,null,null," x "]
[null,null,null,null," x "]
[null,null,null,null," x "]
[null,null,null,null," x "]
[null,null,null,null," x "]
[null,null,null,null," x "]
[null,null,null,null," x "]
[null,null,null,null," x "]
[null,null,null,null," x "]
[null,null,null,null," x "]
[null,null,null,null," x "]
[null,null,null,null," x "]
[null,null,null,null," x "]
[null,null,null,null," x "]
[null,null,null,null," x "]
[null,null,null,null," x "]
[null,null,null,null," x "]
[null,null,null,null," x "]
[null,null,null,null," x "]
[null,null,null,null," x "]
[null,null,null,null," x "]
[null,null,null,null," x "]
[null,null,null,null," x "]
[null,null,null,null," x "]
[null,null,null,null," x "]
[null,null,null,null," x "]
[null,null,null,null," x "]
[null,null,null,null," x "]
[null,null,null,null," x "]
[null,null,null,null," x "]
[null,null,null,null," x "]
[null,null,null,null," x "]
[null,null,null,null," x "]
[null,null,null,null," x "]
[null,null,null,null," x "]
[null,null,null,null," x "]
[null,null,null,null," x "]
[null,null,null,null," x "]
[null,null,null,null,{"$f":"CONCATENATE(I194,\" \",\"x\", \" \", J194)","v":" x "}]
[null,null,null,null," x "]
[null,null,null,null," x "]
[null,null,null,null," x "]
[null,null,null,null," x "]
[null,null,null,null," x "]
[null,null,null,null," x "]
[null,null,null,null," x "]
[null,null,null,null," x "]
[null,null,null,null," x "]
[null,null,null,null," x "]
[null,null,null,null," x "]
[null,null,null,null," x "]
[null,null,null,null," x "]
[null,null,null,null," x "]
[null,null,null,null," x "]
[null,null,null,null," x "]
[null,null,null,null," x "]
[null,null,null,null," x "]
[null,null,null,null," x "]
[null,null,null,null," x "]
[null,null,null,null," x "]
[null,null,null,null," x "]
[null,null,null,null," x "]
[null,null,null,null," x "]
[null,null,null,null," x "]
[null,null,null,null," x "]
[null,null,null,null," x "]
[null,null,null,null," x "]
[null,null,null,null," x "]
[null,null,null,null," x "]
[null,null,null,null," x "]
[null,null,null,null," x "]
[null,null,null,null," x "]
[null,null,null,null," x "]
[null,null,null,null," x "]
[null,null,null,null," x "]
[null,null,null,null," x "]
[null,null,null,null," x "]
[null,null,null,null," x "]
[null,null,null,null," x "]
[null,null,null,null," x "]
[null,null,null,null," x "]
[null,null,null,null," x "]
[null,null,null,null," x "]
[null,null,null,null," x "]
[null,null,null,null," x "]
[null,null,null,null," x "]
[null,null,null,null," x "]
[null,null,null,null," x "]
[null,null,null,null," x "]
[null,null,null,null," x "]
[null,null,null,null," x "]
[null,null,null,null," x "]
[null,null,null,null," x "]
[null,null,null,null," x "]
[null,null,null,null," x "]
[null,null,null,null," x "]
[null,null,null,null," x "]
[null,null,null,null," x "]
[null,null,null,null," x "]
[null,null,null,null," x "]
[null,null,null,null," x "]
[null,null,null,null," x "]
[null,null,null,null,{"$f":"CONCATENATE(I258,\" \",\"x\", \" \", J258)","v":" x "}]
[null,null,null,null," x "]
[null,null,null,null," x "]
[null,null,null,null," x "]
[null,null,null,null," x "]
[null,null,null,null," x "]
[null,null,null,null," x "]
[null,null,null,null," x "]
[null,null,null,null," x "]
[null,null,null,null," x "]
[null,null,null,null," x "]
[null,null,null,null," x "]
[null,null,null,null," x "]
[null,null,null,null," x "]
[null,null,null,null," x "]
[null,null,null,null," x "]
[null,null,null,null," x "]
[null,null,null,null," x "]
[null,null,null,null," x "]
[null,null,null,null," x "]
[null,null,null,null," x "]
[null,null,null,null," x "]
[null,null,null,null," x "]
[null,null,null,null," x "]
[null,null,null,null," x "]
[null,null,null,null," x "]
[null,null,null,null," x "]
[null,null,null,null," x "]
[null,null,null,null," x "]
[null,null,null,null," x "]
[null,null,null,null," x "]
[null,null,null,null," x "]
[null,null,null,null," x "]
[null,null,null,null," x "]
[null,null,null,null," x "]
[null,null,null,null," x "]
[null,null,null,null," x "]
[null,null,null,null," x "]
[null,null,null,null," x "]
[null,null,null,null," x "]
[null,null,null,null," x "]
[null,null,null,null," x "]
[null,null,null,null," x "]
[null,null,null,null," x "]
[null,null,null,null," x "]
[null,null,null,null," x "]
[null,null,null,null," x "]
[null,null,null,null," x "]
[null,null,null,null," x "]
[null,null,null,null," x "]
[null,null,null,null," x "]
[null,null,null,null," x "]
[null,null,null,null," x "]
[null,null,null,null," x "]
[null,null,null,null," x "]
[null,null,null,null," x "]
[null,null,null,null," x "]
[null,null,null,null," x "]
[null,null,null,null," x "]
[null,null,null,null," x "]
[null,null,null,null," x "]
[null,null,null,null," x "]
[null,null,null,null," x "]
[null,null,null,null," x "]
[null,null,null,null,{"$f":"CONCATENATE(I322,\" \",\"x\", \" \", J322)","v":" x "}]
[null,null,null,null," x "]
[null,null,null,null," x "]
[null,null,null,null," x "]
[null,null,null,null," x "]
[null,null,null,null," x "]
[null,null,null,null," x "]
[null,null,null,null," x "]
[null,null,null,null," x "]
[null,null,null,null," x "]
[null,null,null,null," x "]
[null,null,null,null," x "]
[null,null,null,null," x "]
[null,null,null,null," x "]
[null,null,null,null," x "]
[null,null,null,null," x "]
[null,null,null,null," x "]
[null,null,null,null," x "]
[null,null,null,null," x "]
[null,null,null,null," x "]
[null,null,null,null," x "]
[null,null,null,null," x "]
[null,null,null,null," x "]
[null,null,null,null," x "]
[null,null,null,null," x "]
[null,null,null,null," x "]
[null,null,null,null," x "]
[null,null,null,null," x "]
[null,null,null,null," x "]
[null,null,null,null," x "]
[null,null,null,null," x "]
[null,null,null,null," x "]
[null,null,null,null," x "]
[null,null,null,null," x "]
[null,null,null,null," x "]
[null,null,null,null," x "]
[null,null,null,null," x "]
[null,null,null,null," x "]
[null,null,null,null," x "]
[null,null,null,null," x "]
[null,null,null,null," x "]
[null,null,null,null," x "]
[null,null,null,null," x "]
[null,null,null,null," x "]
[null,null,null,null," x "]
[null,null,null,null," x "]
[null,null,null,null," x "]
[null,null,null,null," x "]
[null,null,null,null," x "]
[null,null,null,null," x "]
[null,null,null,null," x "]
[null,null,null,null," x "]
[null,null,null,null," x "]
[null,null,null,null," x "]
[null,null,null,null," x "]
[null,null,null,null," x "]
[null,null,null,null," x "]
[null,null,null,null," x "]
[null,null,null,null," x "]
[null,null,null,null," x "]
[null,null,null,null," x "]
[null,null,null,null," x "]
[null,null,null,null," x "]
[null,null,null,null," x "]
[null,null,null,null,{"$f":"CONCATENATE(I386,\" \",\"x\", \" \", J386)","v":" x "}]
[null,null,null,null," x "]
[null,null,null,null," x "]
[null,null,null,null," x "]
[null,null,null,null," x "]
[null,null,null,null," x "]
[null,null,null,null," x "]
[null,null,null,null," x "]
[null,null,null,null," x "]
[null,null,null,null," x "]
[null,null,null,null," x "]
[null,null,null,null," x "]
[null,null,null,null," x "]
[null,null,null,null," x "]
[null,null,null,null," x "]
[null,null,null,null," x "]
[null,null,null,null," x "]
[null,null,null,null," x "]
[null,null,null,null," x "]
[null,null,null,null," x "]
[null,null,null,null," x "]
[null,null,null,null," x "]
[null,null,null,null," x "]
[null,null,null,null," x "]
[null,null,null,null," x "]
[null,null,null,null," x "]
[null,null,null,null," x "]
[null,null,null,null," x "]
[null,null,null,null," x "]
[null,null,null,null," x "]
[null,null,null,null," x "]
[null,null,null,null," x "]
[null,null,null,null," x "]
[null,null,null,null," x "]
[null,null,null,null," x "]
[null,null,null,null," x "]
[null,null,null,null," x "]
[null,null,null,null," x "]
[null,null,null,null," x "]
[null,null,null,null," x "]
[null,null,null,null," x "]
[null,null,null,null," x "]
[null,null,null,null," x "]
[null,null,null,null," x "]
[null,null,null,null," x "]
[null,null,null,null," x "]
[null,null,null,null," x "]
[null,null,null,null," x "]
[null,null,null,null," x "]
[null,null,null,null," x "]
[null,null,null,null," x "]
[null,null,null,null," x "]
[null,null,null,null," x "]
[null,null,null,null," x "]
[null,null,null,null," x "]
[null,null,null,null," x "]
[null,null,null,null," x "]
[null,null,null,null," x "]
[null,null,null,null," x "]
[null,null,null,null," x "]
[null,null,null,null," x "]
[null,null,null,null," x "]
[null,null,null,null," x "]
[null,null,null,null," x "]
[null,null,null,null,{"$f":"CONCATENATE(I450,\" \",\"x\", \" \", J450)","v":" x "}]
[null,null,null,null," x "]
[null,null,null,null," x "]
[null,null,null,null," x "]
[null,null,null,null," x "]
[null,null,null,null," x "]
[null,null,null,null," x "]
[null,null,null,null," x "]
[null,null,null,null," x "]
[null,null,null,null," x "]
[null,null,null,null," x "]
[null,null,null,null," x "]
[null,null,null,null," x "]
[null,null,null,null," x "]
[null,null,null,null," x "]
[null,null,null,null," x "]
[null,null,null,null," x "]
[null,null,null,null," x "]
[null,null,null,null," x "]
[null,null,null,null," x "]
[null,null,null,null," x "]
[null,null,null,null," x "]
[null,null,null,null," x "]
[null,null,null,null," x "]
[null,null,null,null," x "]
[null,null,null,null," x "]
[null,null,null,null," x "]
[null,null,null,null," x "]
[null,null,null,null," x "]
[null,null,null,null," x "]
[null,null,null,null," x "]
[null,null,null,null," x "]
[null,null,null,null," x "]
[null,null,null,null," x "]
[null,null,null,null," x "]
[null,null,null,null," x "]
[null,null,null,null," x "]
[null,null,null,null," x "]
[null,null,null,null," x "]
[null,null,null,null," x "]
[null,null,null,null," x "]
[null,null,null,null," x "]
[null,null,null,null," x "]
[null,null,null,null," x "]
[null,null,null,null," x "]
[null,null,null,null," x "]
[null,null,null,null," x "]
[null,null,null,null," x "]
[null,null,null,null," x "]
[null,null,null,null," x "]
[null,null,null,null," x "]
[null,null,null,null," x "]
[null,null,null,null," x "]
[null,null,null,null," x "]
[null,null,null,null," x "]
[null,null,null,null," x "]
[null,null,null,null," x "]
[null,null,null,null," x "]
[null,null,null,null," x "]
[null,null,null,null," x "]
[null,null,null,null," x "]
[null,null,null,null," x "]
[null,null,null,null," x "]
[null,null,null,null," x "]
[null,null,null,null,{"$f":"CONCATENATE(I514,\" \",\"x\", \" \", J514)","v":" x "}]
[null,null,null,null," x "]
[null,null,null,null," x "]
[null,null,null,null," x "]
[null,null,null,null," x "]
[null,null,null,null," x "]
[null,null,null,null," x "]
[null,null,null,null," x "]
[null,null,null,null," x "]
[null,null,null,null," x "]
[null,null,null,null," x "]
[null,null,null,null," x "]
[null,null,null,null," x "]
[null,null,null,null," x "]
[null,null,null,null," x "]
[null,null,null,null," x "]
[null,null,null,null," x "]
[null,null,null,null," x "]
[null,null,null,null," x "]
[null,null,null,null," x "]
[null,null,null,null," x "]
[null,null,null,null," x "]
[null,null,null,null," x "]
[null,null,null,null," x "]
[null,null,null,null," x "]
[null,null,null,null," x "]
[null,null,null,null," x "]
[null,null,null,null," x "]
[null,null,null,null," x "]
[null,null,null,null," x "]
[null,null,null,null," x "]
[null,null,null,null," x "]
[null,null,null,null," x "]
[null,null,null,null," x "]
[null,null,null,null," x "]
[null,null,null,null," x "]
[null,null,null,null," x "]
[null,null,null,null," x "]
[null,null,null,null," x "]
[null,null,null,null," x "]
[null,null,null,null," x "]
[null,null,null,null," x "]
[null,null,null,null," x "]
[null,null,null,null," x "]
[null,null,null,null," x "]
[null,null,null,null," x "]
[null,null,null,null," x "]
[null,null,null,null," x "]
[null,null,null,null," x "]
[null,null,null,null," x "]
[null,null,null,null," x "]
[null,null,null,null," x "]
[null,null,null,null," x "]
[null,null,null,null," x "]
[null,null,null,null," x "]
[null,null,null,null," x "]
[null,null,null,null," x "]
[null,null,null,null," x "]
[null,null,null,null," x "]
[null,null,null,null," x "]
[null,null,null,null," x "]
[null,null,null,null," x "]
[null,null,null,null," x "]
[null,null,null,null," x "]
[null,null,null,null,{"$f":"CONCATENATE(I578,\" \",\"x\", \" \", J578)","v":" x "}]
[null,null,null,null," x "]
[null,null,null,null," x "]
[null,null,null,null," x "]
[null,null,null,null," x "]
[null,null,null,null," x "]
[null,null,null,null," x "]
[null,null,null,null," x "]
[null,null,null,null," x "]
[null,null,null,null," x "]
[null,null,null,null," x "]
[null,null,null,null," x "]
[null,null,null,null," x "]
[null,null,null,null," x "]
[null,null,null,null," x "]
[null,null,null,null," x "]
[null,null,null,null," x "]
[null,null,null,null," x "]
[null,null,null,null," x "]
[null,null,null,null," x "]
[null,null,null,null," x "]
[null,null,null,null," x "]
[null,null,null,null," x "]
[null,null,null,null," x "]
[null,null,null,null," x "]
[null,null,null,null," x "]
[null,null,null,null," x "]
[null,null,null,null," x "]
[null,null,null,null," x "]
[null,null,null,null," x "]
[null,null,null,null," x "]
[null,null,null,null," x "]
[null,null,null,null," x "]
[null,null,null,null," x "]
[null,null,null,null," x "]
[null,null,null,null," x "]
[null,null,null,null," x "]
[null,null,null,null," x "]
[null,null,null,null," x "]
[null,null,null,null," x "]
[null,null,null,null," x "]
[null,null,null,null," x "]
[null,null,null,null," x "]
[null,null,null,null," x "]
[null,null,null,null," x "]
[null,null,null,null," x "]
[null,null,null,null," x "]
[null,null,null,null," x "]
[null,null,null,null," x "]
[null,null,null,null," x "]
[null,null,null,null," x "]
[null,null,null,null," x "]
[null,null,null,null," x "]
[null,null,null,null," x "]
[null,null,null,null," x "]
[null,null,null,null," x "]
[null,null,null,null," x "]
[null,null,null,null," x "]
[null,null,null,null," x "]
[null,null,null,null," x "]
[null,null,null,null," x "]
[null,null,null,null," x "]
[null,null,null,null," x "]
[null,null,null,null," x "]
[null,null,null,null,{"$f":"CONCATENATE(I642,\" \",\"x\", \" \", J642)","v":" x "}]
[null,null,null,null," x "]
[null,null,null,null," x "]
[null,null,null,null," x "]
[null,null,null,null," x "]
[null,null,null,null," x "]
[null,null,null,null," x "]
[null,null,null,null," x "]
[null,null,null,null," x "]
[null,null,null,null," x "]
[null,null,null,null," x "]
[null,null,null,null," x "]
[null,null,null,null," x "]
[null,null,null,null," x "]
[null,null,null,null," x "]
[null,null,null,null," x "]
[null,null,null,null," x "]
[null,null,null,null," x "]
[null,null,null,null," x "]
[null,null,null,null," x "]
[null,null,null,null," x "]
[null,null,null,null," x "]
[null,null,null,null," x "]
[null,null,null,null," x "]
[null,null,null,null," x "]
[null,null,null,null," x "]
[null,null,null,null," x "]
[null,null,null,null," x "]
[null,null,null,null," x "]
[null,null,null,null," x "]
[null,null,null,null," x "]
[null,null,null,null," x "]
[null,null,null,null," x "]
[null,null,null,null," x "]
[null,null,null,null," x "]
[null,null,null,null," x "]
[null,null,null,null," x "]
[null,null,null,null," x "]
[null,null,null,null," x "]
[null,null,null,null," x "]
[null,null,null,null," x "]
[null,null,null,null," x "]
[null,null,null,null," x "]
[null,null,null,null," x "]
[null,null,null,null," x "]
[null,null,null,null," x "]
[null,null,null,null," x "]
[null,null,null,null," x "]
[null,null,null,null," x "]
[null,null,null,null," x "]
[null,null,null,null," x "]
[null,null,null,null," x "]
[null,null,null,null," x "]
[null,null,null,null," x "]
[null,null,null,null," x "]
[null,null,null,null," x "]
[null,null,null,null," x "]
[null,null,null,null," x "]
[null,null,null,null," x "]
[null,null,null,null," x "]
[null,null,null,null," x "]
[null,null,null,null," x "]
[null,null,null,null," x "]
[null,null,null,null," x "]
[null,null,null,null,{"$f":"CONCATENATE(I706,\" \",\"x\", \" \", J706)","v":" x "}]
[null,null,null,null," x "]
[null,null,null,null," x "]
[null,null,null,null," x "]
[null,null,null,null," x "]
[null,null,null,null," x "]
[null,null,null,null," x "]
[null,null,null,null," x "]
[null,null,null,null," x "]
[null,null,null,null," x "]
[null,null,null,null," x "]
[null,null,null,null," x "]
[null,null,null,null," x "]
[null,null,null,null," x "]
[null,null,null,null," x "]
[null,null,null,null," x "]
[null,null,null,null," x "]
[null,null,null,null," x "]
[null,null,null,null," x "]
[null,null,null,null," x "]
[null,null,null,null," x "]
[null,null,null,null," x "]
[null,null,null,null," x "]
[null,null,null,null," x "]
[null,null,null,null," x "]
[null,null,null,null," x "]
[null,null,null,null," x "]
[null,null,null,null," x "]
[null,null,null,null," x "]
[null,null,null,null," x "]
[null,null,null,null," x "]
[null,null,null,null," x "]
[null,null,null,null," x "]
[null,null,null,null," x "]
[null,null,null,null," x "]
[null,null,null,null," x "]
[null,null,null,null," x "]
[null,null,null,null," x "]
[null,null,null,null," x "]
[null,null,null,null," x "]
[null,null,null,null," x "]
[null,null,null,null," x "]
[null,null,null,null," x "]
[null,null,null,null," x "]
[null,null,null,null," x "]
[null,null,null,null," x "]
[null,null,null,null," x "]
[null,null,null,null," x "]
[null,null,null,null," x "]
[null,null,null,null," x "]
[null,null,null,null," x "]
[null,null,null,null," x "]
[null,null,null,null," x "]
[null,null,null,null," x "]
[null,null,null,null," x "]
[null,null,null,null," x "]
[null,null,null,null," x "]
[null,null,null,null," x "]
[null,null,null,null," x "]
[null,null,null,null," x "]
[null,null,null,null," x "]
[null,null,null,null," x "]
[null,null,null,null," x "]
[null,null,null,null," x "]
[null,null,null,null,{"$f":"CONCATENATE(I770,\" \",\"x\", \" \", J770)","v":" x "}]
[null,null,null,null," x "]
[null,null,null,null," x "]
[null,null,null,null," x "]
[null,null,null,null," x "]
[null,null,null,null," x "]
[null,null,null,null," x "]
[null,null,null,null," x "]
[null,null,null,null," x "]
[null,null,null,null," x "]
[null,null,null,null," x "]
[null,null,null,null," x "]
[null,null,null,null," x "]
[null,null,null,null," x "]
[null,null,null,null," x "]
[null,null,null,null," x "]
[null,null,null,null," x "]
[null,null,null,null," x "]
[null,null,null,null," x "]
[null,null,null,null," x "]
[null,null,null,null," x "]
[null,null,null,null," x "]
[null,null,null,null," x "]
[null,null,null,null," x "]
[null,null,null,null," x "]
[null,null,null,null," x "]
[null,null,null,null," x "]
[null,null,null,null," x "]
[null,null,null,null," x "]
[null,null,null,null," x "]
[null,null,null,null," x "]
[null,null,null,null," x "]
[null,null,null,null," x "]
[null,null,null,null," x "]
[null,null,null,null," x "]
[null,null,null,null," x "]
[null,null,null,null," x "]
[null,null,null,null," x "]
[null,null,null,null," x "]
[null,null,null,null," x "]
[null,null,null,null," x "]
[null,null,null,null," x "]
[null,null,null,null," x "]
[null,null,null,null," x "]
[null,null,null,null," x "]
[null,null,null,null," x "]
[null,null,null,null," x "]
[null,null,null,null," x "]
[null,null,null,null," x "]
[null,null,null,null," x "]
[null,null,null,null," x "]
[null,null,null,null," x "]
[null,null,null,null," x "]
[null,null,null,null," x "]
[null,null,null,null," x "]
[null,null,null,null," x "]
[null,null,null,null," x "]
[null,null,null,null," x "]
[null,null,null,null," x "]
[null,null,null,null," x "]
[null,null,null,null," x "]
[null,null,null,null," x "]
[null,null,null,null," x "]
[null,null,null,null," x "]
[null,null,null,null,{"$f":"CONCATENATE(I834,\" \",\"x\", \" \", J834)","v":" x "}]
[null,null,null,null," x "]
[null,null,null,null," x "]
[null,null,null,null," x "]
[null,null,null,null," x "]
[null,null,null,null," x "]
[null,null,null,null," x "]
[null,null,null,null," x "]
[null,null,null,null," x "]
[null,null,null,null," x "]
[null,null,null,null," x "]
[null,null,null,null," x "]
[null,null,null,null," x "]
[null,null,null,null," x "]
[null,null,null,null," x "]
[null,null,null,null," x "]
[null,null,null,null," x "]
[null,null,null,null," x "]
[null,null,null,null," x "]
[null,null,null,null," x "]
[null,null,null,null," x "]
[null,null,null,null," x "]
[null,null,null,null," x "]
[null,null,null,null," x "]
[null,null,null,null," x "]
[null,null,null,null," x "]
[null,null,null,null," x "]
[null,null,null,null," x "]
[null,null,null,null," x "]
[null,null,null,null," x "]
[null,null,null,null," x "]
[null,null,null,null," x "]
[null,null,null,null," x "]
[null,null,null,null," x "]
[null,null,null,null," x "]
[null,null,null,null," x "]
[null,null,null,null," x "]
[null,null,null,null," x "]
[null,null,null,null," x "]
[null,null,null,null," x "]
[null,null,null,null," x "]
[null,null,null,null," x "]
[null,null,null,null," x "]
[null,null,null,null," x "]
[null,null,null,null," x "]
[null,null,null,null," x "]
[null,null,null,null," x "]
[null,null,null,null," x "]
[null,null,null,null," x "]
[null,null,null,null," x "]
[null,null,null,null," x "]
[null,null,null,null," x "]
[null,null,null,null," x "]
[null,null,null,null," x "]
[null,null,null,null," x "]
[null,null,null,null," x "]
[null,null,null,null," x "]
[null,null,null,null," x "]
[null,null,null,null," x "]
[null,null,null,null," x "]
[null,null,null,null," x "]
[null,null,null,null," x "]
[null,null,null,null," x "]
[null,null,null,null," x "]
[null,null,null,null,{"$f":"CONCATENATE(I898,\" \",\"x\", \" \", J898)","v":" x "}]
[null,null,null,null," x "]
[null,null,null,null," x "]
[null,null,null,null," x "]
[null,null,null,null," x "]
[null,null,null,null," x "]
[null,null,null,null," x "]
[null,null,null,null," x "]
[null,null,null,null," x "]
[null,null,null,null," x "]
[null,null,null,null," x "]
[null,null,null,null," x "]
[null,null,null,null," x "]
[null,null,null,null," x "]
[null,null,null,null," x "]
[null,null,null,null," x "]
[null,null,null,null," x "]
[null,null,null,null," x "]
[null,null,null,null," x "]
[null,null,null,null," x "]
[null,null,null,null," x "]
[null,null,null,null," x "]
[null,null,null,null," x "]
[null,null,null,null," x "]
[null,null,null,null," x "]
[null,null,null,null," x "]
[null,null,null,null," x "]
[null,null,null,null," x "]
[null,null,null,null," x "]
[null,null,null,null," x "]
[null,null,null,null," x "]
[null,null,null,null," x "]
[null,null,null,null," x "]
[null,null,null,null," x "]
[null,null,null,null," x "]
[null,null,null,null," x "]
[null,null,null,null," x "]
[null,null,null,null," x "]
[null,null,null,null," x "]
[null,null,null,null," x "]
[null,null,null,null," x "]
[null,null,null,null," x "]
[null,null,null,null," x "]
[null,null,null,null," x "]
[null,null,null,null," x "]
[null,null,null,null," x "]
[null,null,null,null," x "]
[null,null,null,null," x "]
[null,null,null,null," x "]
[null,null,null,null," x "]
[null,null,null,null," x "]
[null,null,null,null," x "]
[null,null,null,null," x "]
[null,null,null,null," x "]
[null,null,null,null," x "]
[null,null,null,null," x "]
[null,null,null,null," x "]
[null,null,null,null," x "]
[null,null,null,null," x "]
[null,null,null,null," x "]
[null,null,null,null," x "]
[null,null,null,null," x "]
[null,null,null,null," x "]
[null,null,null,null," x "]
[null,null,null,null,{"$f":"CONCATENATE(I962,\" \",\"x\", \" \", J962)","v":" x "}]
[null,null,null,null," x "]
[null,null,null,null," x "]
[null,null,null,null," x "]
[null,null,null,null," x "]
[null,null,null,null," x "]
[null,null,null,null," x "]
[null,null,null,null," x "]
[null,null,null,null," x "]
[null,null,null,null," x "]
[null,null,null,null," x "]
[null,null,null,null," x "]
[null,null,null,null," x "]
[null,null,null,null," x "]
[null,null,null,null," x "]
[null,null,null,null," x "]
[null,null,null,null," x "]
[null,null,null,null," x "]
[null,null,null,null," x "]
[null,null,null,null," x "]
[null,null,null,null," x "]
[null,null,null,null," x "]
[null,null,null,null," x "]
[null,null,null,null," x "]
[null,null,null,null," x "]
[null,null,null,null," x "]
[null,null,null,null," x "]
[null,null,null,null," x "]
[null,null,null,null," x "]
[null,null,null,null," x "]
[null,null,null,null," x "]
[null,null,null,null," x "]
[null,null,null,null," x "]
[null,null,null,null," x "]
[null,null,null,null," x "]
[null,null,null,null," x "]
[null,null,null,null," x "]
[null,null,null,null," x "]
[null,null,null,null," x "]
[null,null,null,null," x "]
[null,null,null,null," x "]
[null,null,null,null," x "]
[null,null,null,null," x "]
[null,null,null,null," x "]
[null,null,null,null," x "]
[null,null,null,null," x "]
[null,null,null,null," x "]
[null,null,null,null," x "]
[null,null,null,null," x "]
[null,null,null,null," x "]
[null,null,null,null," x "]
[null,null,null,null," x "]
[null,null,null,null," x "]
[null,null,null,null," x "]
[null,null,null,null," x "]
[null,null,null,null," x "]
[null,null,null,null," x "]
[null,null,null,null," x "]
[null,null,null,null," x "]
[null,null,null,null," x "]
[null,null,null,null," x "]
[null,null,null,null," x "]
[null,null,null,null," x "]
[null,null,null,null," x "]
[null,null,null,null,{"$f":"CONCATENATE(I1026,\" \",\"x\", \" \", J1026)","v":" x "}]
[null,null,null,null," x "]
[null,null,null,null," x "]
[null,null,null,null," x "]
[null,null,null,null," x "]
[null,null,null,null," x "]
[null,null,null,null," x "]
[null,null,null,null," x "]
[null,null,null,null," x "]
[null,null,null,null," x "]
[null,null,null,null," x "]
[null,null,null,null," x "]
[null,null,null,null," x "]
[null,null,null,null," x "]
[null,null,null,null," x "]
[null,null,null,null," x "]
[null,null,null,null," x "]
[null,null,null,null," x "]
[null,null,null,null," x "]
[null,null,null,null," x "]
[null,null,null,null," x "]
[null,null,null,null," x "]
[null,null,null,null," x "]
[null,null,null,null," x "]
[null,null,null,null," x "]
[null,null,null,null," x "]
[null,null,null,null," x "]
[null,null,null,null," x "]
[null,null,null,null," x "]
[null,null,null,null," x "]
[null,null,null,null," x "]
[null,null,null,null," x "]
[null,null,null,null," x "]
[null,null,null,null," x "]
[null,null,null,null," x "]
[null,null,null,null," x "]
[null,null,null,null," x "]
[null,null,null,null," x "]
[null,null,null,null," x "]
[null,null,null,null," x "]
[null,null,null,null," x "]
[null,null,null,null," x "]
[null,null,null,null," x "]
[null,null,null,null," x "]
[null,null,null,null," x "]
[null,null,null,null," x "]
[null,null,null,null," x "]
[null,null,null,null," x "]
[null,null,null,null," x "]
[null,null,null,null," x "]
[null,null,null,null," x "]
[null,null,null,null," x "]
[null,null,null,null," x "]
[null,null,null,null," x "]
[null,null,null,null," x "]
[null,null,null,null," x "]
[null,null,null,null," x "]
[null,null,null,null," x "]
[null,null,null,null," x "]
[null,null,null,null," x "]
[null,null,null,null," x "]
[null,null,null,null," x "]
[null,null,null,null," x "]
[null,null,null,null," x "]
[null,null,null,null,{"$f":"CONCATENATE(I1090,\" \",\"x\", \" \", J1090)","v":" x "}]
[null,null,null,null," x "]
[null,null,null,null," x "]
[null,null,null,null," x "]
[null,null,null,null," x "]
[null,null,null,null," x "]
[null,null,null,null," x "]
[null,null,null,null," x "]
[null,null,null,null," x "]
[null,null,null,null," x "]
[null,null,null,null," x "]
[null,null,null,null," x "]
[null,null,null,null," x "]
[null,null,null,null," x "]
[null,null,null,null," x "]
[null,null,null,null," x "]
[null,null,null,null," x "]
[null,null,null,null," x "]
[null,null,null,null," x "]
[null,null,null,null," x "]
[null,null,null,null," x "]
[null,null,null,null," x "]
[null,null,null,null," x "]
[null,null,null,null," x "]
[null,null,null,null," x "]
[null,null,null,null," x "]
[null,null,null,null," x "]
[null,null,null,null," x "]
[null,null,null,null," x "]
[null,null,null,null," x "]
[null,null,null,null," x "]
[null,null,null,null," x "]
[null,null,null,null," x "]
[null,null,null,null," x "]
[null,null,null,null," x "]
[null,null,null,null," x "]
[null,null,null,null," x "]
[null,null,null,null," x "]
[null,null,null,null," x "]
[null,null,null,null," x "]
[null,null,null,null," x "]
[null,null,null,null," x "]
[null,null,null,null," x "]
[null,null,null,null," x "]
[null,null,null,null," x "]
[null,null,null,null," x "]
[null,null,null,null," x "]
[null,null,null,null," x "]
[null,null,null,null," x "]
[null,null,null,null," x "]
[null,null,null,null," x "]
[null,null,null,null," x "]
[null,null,null,null," x "]
[null,null,null,null," x "]
[null,null,null,null," x "]
[null,null,null,null," x "]
[null,null,null,null," x "]
[null,null,null,null," x "]
[null,null,null,null," x "]
[null,null,null,null," x "]
[null,null,null,null," x "]
[null,null,null,null," x "]
[null,null,null,null," x "]
[null,null,null,null," x "]
[null,null,null,null,{"$f":"CONCATENATE(I1154,\" \",\"x\", \" \", J1154)","v":" x "}]
[null,null,null,null," x "]
[null,null,null,null," x "]
[null,null,null,null," x "]
[null,null,null,null," x "]
[null,null,null,null," x "]
[null,null,null,null," x "]
[null,null,null,null," x "]
[null,null,null,null," x "]
[null,null,null,null," x "]
[null,null,null,null," x "]
[null,null,null,null," x "]
[null,null,null,null," x "]
[null,null,null,null," x "]
[null,null,null,null," x "]
[null,null,null,null," x "]
[null,null,null,null," x "]
[null,null,null,null," x "]
[null,null,null,null," x "]
[null,null,null,null," x "]
[null,null,null,null," x "]
[null,null,null,null," x "]
[null,null,null,null," x "]
[null,null,null,null," x "]
[null,null,null,null," x "]
[null,null,null,null," x "]
[null,null,null,null," x "]
[null,null,null,null," x "]
[null,null,null,null," x "]
[null,null,null,null," x "]
[null,null,null,null," x "]
[null,null,null,null," x "]
[null,null,null,null," x "]
[null,null,null,null," x "]
[null,null,null,null," x "]
[null,null,null,null," x "]
[null,null,null,null," x "]
[null,null,null,null," x "]
[null,null,null,null," x "]
[null,null,null,null," x "]
[null,null,null,null," x "]
[null,null,null,null," x "]
[null,null,null,null," x "]
[null,null,null,null," x "]
[null,null,null,null," x "]
[null,null,null,null," x "]
[null,null,null,null," x "]
[null,null,null,null," x "]
[null,null,null,null," x "]
[null,null,null,null," x "]
[null,null,null,null," x "]
[null,null,null,null," x "]
[null,null,null,null," x "]
[null,null,null,null," x "]
[null,null,null,null," x "]
[null,null,null,null," x "]
[null,null,null,null," x "]
[null,null,null,null," x "]
[null,null,null,null," x "]
[null,null,null,null," x "]
[null,null,null,null," x "]
[null,null,null,null," x "]
[null,null,null,null," x "]
[null,null,null,null," x "]
[null,null,null,null,{"$f":"CONCATENATE(I1218,\" \",\"x\", \" \", J1218)","v":" x "}]
[null,null,null,null," x "]
[null,null,null,null," x "]
[null,null,null,null," x "]
[null,null,null,null," x "]
[null,null,null,null," x "]
[null,null,null,null," x "]
[null,null,null,null," x "]
[null,null,null,null," x "]
[null,null,null,null," x "]
[null,null,null,null," x "]
[null,null,null,null," x "]
[null,null,null,null," x "]
[null,null,null,null," x "]
[null,null,null,null," x "]
[null,null,null,null," x "]
[null,null,null,null," x "]
[null,null,null,null," x "]
[null,null,null,null," x "]
[null,null,null,null," x "]
[null,null,null,null," x "]
[null,null,null,null," x "]
[null,null,null,null," x "]
[null,null,null,null," x "]
[null,null,null,null," x "]
[null,null,null,null," x "]
[null,null,null,null," x "]
[null,null,null,null," x "]
[null,null,null,null," x "]
[null,null,null,null," x "]
[null,null,null,null," x "]
[null,null,null,null," x "]
[null,null,null,null," x "]
[null,null,null,null," x "]
[null,null,null,null," x "]
[null,null,null,null," x "]
[null,null,null,null," x "]
[null,null,null,null," x "]
[null,null,null,null," x "]
[null,null,null,null," x "]
[null,null,null,null," x "]
[null,null,null,null," x "]
[null,null,null,null," x "]
[null,null,null,null," x "]
[null,null,null,null," x "]
[null,null,null,null," x "]
[null,null,null,null," x "]
[null,null,null,null," x "]
[null,null,null,null," x "]
[null,null,null,null," x "]
[null,null,null,null," x "]
[null,null,null,null," x "]
[null,null,null,null," x "]
[null,null,null,null," x "]
[null,null,null,null," x "]
[null,null,null,null," x "]
[null,null,null,null," x "]
[null,null,null,null," x "]
[null,null,null,null," x "]
[null,null,null,null," x "]
[null,null,null,null," x "]
[null,null,null,null," x "]
[null,null,null,null," x "]
[null,null,null,null," x "]
[null,null,null,null,{"$f":"CONCATENATE(I1282,\" \",\"x\", \" \", J1282)","v":" x "}]
[null,null,null,null," x "]
[null,null,null,null," x "]
[null,null,null,null," x "]
[null,null,null,null," x "]
[null,null,null,null," x "]
[null,null,null,null," x "]
[null,null,null,null," x "]
[null,null,null,null," x "]
[null,null,null,null," x "]
[null,null,null,null," x "]
[null,null,null,null," x "]
[null,null,null,null," x "]
[null,null,null,null," x "]
[null,null,null,null," x "]
[null,null,null,null," x "]
[null,null,null,null," x "]
[null,null,null,null," x "]
[null,null,null,null," x "]
[null,null,null,null," x "]
[null,null,null,null," x "]
[null,null,null,null," x "]
[null,null,null,null," x "]
[null,null,null,null," x "]
[null,null,null,null," x "]
[null,null,null,null," x "]
[null,null,null,null," x "]
[null,null,null,null," x "]
[null,null,null,null," x "]
[null,null,null,null," x "]
[null,null,null,null," x "]
[null,null,null,null," x "]
[null,null,null,null," x "]
[null,null,null,null," x "]
[null,null,null,null," x "]
[null,null,null,null," x "]
[null,null,null,null," x "]
[null,null,null,null," x "]
[null,null,null,null," x "]
[null,null,null,null," x "]
[null,null,null,null," x "]
[null,null,null,null," x "]
[null,null,null,null," x "]
[null,null,null,null," x "]
[null,null,null,null," x "]
[null,null,null,null," x "]
[null,null,null,null," x "]
[null,null,null,null," x "]
[null,null,null,null," x "]
[null,null,null,null," x "]
[null,null,null,null," x "]
[null,null,null,null," x "]
[null,null,null,null," x "]
[null,null,null,null," x "]
[null,null,null,null," x "]
[null,null,null,null," x "]
[null,null,null,null," x "]
[null,null,null,null," x "]
[null,null,null,null," x "]
[null,null,null,null," x "]
[null,null,null,null," x "]
[null,null,null,null," x "]
[null,null,null,null," x "]
[null,null,null,null," x "]
[null,null,null,null,{"$f":"CONCATENATE(I1346,\" \",\"x\", \" \", J1346)","v":" x "}]
[null,null,null,null," x "]
[null,null,null,null," x "]
[null,null,null,null," x "]
[null,null,null,null," x "]
[null,null,null,null," x "]
[null,null,null,null," x "]
[null,null,null,null," x "]
[null,null,null,null," x "]
[null,null,null,null," x "]
[null,null,null,null," x "]
[null,null,null,null," x "]
[null,null,null,null," x "]
[null,null,null,null," x "]
[null,null,null,null," x "]
[null,null,null,null," x "]
[null,null,null,null," x "]
[null,null,null,null," x "]
[null,null,null,null," x "]
[null,null,null,null," x "]
[null,null,null,null," x "]
[null,null,null,null," x "]
[null,null,null,null," x "]
[null,null,null,null," x "]
[null,null,null,null," x "]
[null,null,null,null," x "]
[null,null,null,null," x "]
[null,null,null,null," x "]
[null,null,null,null," x "]
[null,null,null,null," x "]
[null,null,null,null," x "]
[null,null,null,null," x "]
[null,null,null,null," x "]
[null,null,null,null," x "]
[null,null,null,null," x "]
[null,null,null,null," x "]
[null,null,null,null," x "]
[null,null,null,null," x "]
[null,null,null,null," x "]
[null,null,null,null," x "]
[null,null,null,null," x "]
[null,null,null,null," x "]
[null,null,null,null," x "]
[null,null,null,null," x "]
[null,null,null,null," x "]
[null,null,null,null," x "]
[null,null,null,null," x "]
[null,null,null,null," x "]
[null,null,null,null," x "]
[null,null,null,null," x "]
[null,null,null,null," x "]
[null,null,null,null," x "]
[null,null,null,null," x "]
[null,null,null,null," x "]
[null,null,null,null," x "]
[null,null,null,null," x "]
[null,null,null,null," x "]
[null,null,null,null," x "]
[null,null,null,null," x "]
[null,null,null,null," x "]
[null,null,null,null," x "]
[null,null,null,null," x "]
[null,null,null,null," x "]
[null,null,null,null," x "]
[null,null,null,null,{"$f":"CONCATENATE(I1410,\" \",\"x\", \" \", J1410)","v":" x "}]
[null,null,null,null," x "]
[null,null,null,null," x "]
[null,null,null,null," x "]
[null,null,null,null," x "]
[null,null,null,null," x "]
[null,null,null,null," x "]
[null,null,null,null," x "]
[null,null,null,null," x "]
[null,null,null,null," x "]
[null,null,null,null," x "]
[null,null,null,null," x "]
[null,null,null,null," x "]
[null,null,null,null," x "]
[null,null,null,null," x "]
[null,null,null,null," x "]
[null,null,null,null," x "]
[null,null,null,null," x "]
[null,null,null,null," x "]
[null,null,null,null," x "]
[null,null,null,null," x "]
[null,null,null,null," x "]
[null,null,null,null," x "]
[null,null,null,null," x "]
[null,null,null,null," x "]
[null,null,null,null," x "]
[null,null,null,null," x "]
[null,null,null,null," x "]
[null,null,null,null," x "]
[null,null,null,null," x "]
[null,null,null,null," x "]
[null,null,null,null," x "]
[null,null,null,null," x "]
[null,null,null,null," x "]
[null,null,null,null," x "]
[null,null,null,null," x "]
[null,null,null,null," x "]
[null,null,null,null," x "]
[null,null,null,null," x "]
[null,null,null,null," x "]
[null,null,null,null," x "]
[null,null,null,null," x "]
[null,null,null,null," x "]
[null,null,null,null," x "]
[null,null,null,null," x "]
[null,null,null,null," x "]
[null,null,null,null," x "]
[null,null,null,null," x "]
[null,null,null,null," x "]
[null,null,null,null," x "]
[null,null,null,null," x "]
[null,null,null,null," x "]
[null,null,null,null," x "]
[null,null,null,null," x "]
[null,null,null,null," x "]
[null,null,null,null," x "]
[null,null,null,null," x "]
[null,null,null,null," x "]
[null,null,null,null," x "]
[null,null,null,null," x "]
[null,null,null,null," x "]
[null,null,null,null," x "]
[null,null,null,null," x "]
[null,null,null,null," x "]
[null,null,null,null,{"$f":"CONCATENATE(I1474,\" \",\"x\", \" \", J1474)","v":" x "}]
[null,null,null,null," x "]
[null,null,null,null," x "]
[null,null,null,null," x "]
[null,null,null,null," x "]
[null,null,null,null," x "]
[null,null,null,null," x "]
[null,null,null,null," x "]
[null,null,null,null," x "]
[null,null,null,null," x "]
[null,null,null,null," x "]
[null,null,null,null," x "]
[null,null,null,null," x "]
[null,null,null,null," x "]
[null,null,null,null," x "]
[null,null,null,null," x "]
[null,null,null,null," x "]
[null,null,null,null," x "]
[null,null,null,null," x "]
[null,null,null,null," x "]
[null,null,null,null," x "]
[null,null,null,null," x "]
[null,null,null,null," x "]
[null,null,null,null," x "]
[null,null,null,null," x "]
[null,null,null,null," x "]
[null,null,null,null," x "]
[null,null,null,null," x "]
[null,null,null,null," x "]
[null,null,null,null," x "]
[null,null,null,null," x "]
[null,null,null,null," x "]
[null,null,null,null," x "]
[null,null,null,null," x "]
[null,null,null,null," x "]
[null,null,null,null," x "]
[null,null,null,null," x "]
[null,null,null,null," x "]
[null,null,null,null," x "]
[null,null,null,null," x "]
[null,null,null,null," x "]
[null,null,null,null," x "]
[null,null,null,null," x "]
[null,null,null,null," x "]
[null,null,null,null," x "]
[null,null,null,null," x "]
[null,null,null,null," x "]
[null,null,null,null," x "]
[null,null,null,null," x "]
[null,null,null,null," x "]
[null,null,null,null," x "]
[null,null,null,null," x "]
[null,null,null,null," x "]
[null,null,null,null," x "]
[null,null,null,null," x "]
[null,null,null,null," x "]
[null,null,null,null," x "]
[null,null,null,null," x "]
[null,null,null,null," x "]
[null,null,null,null," x "]
[null,null,null,null," x "]
[null,null,null,null," x "]
[null,null,null,null," x "]
[null,null,null,null," x "]
[null,null,null,null,{"$f":"CONCATENATE(I1538,\" \",\"x\", \" \", J1538)","v":" x "}]
[null,null,null,null," x "]
[null,null,null,null," x "]
[null,null,null,null," x "]
[null,null,null,null," x "]
[null,null,null,null," x "]
[null,null,null,null," x "]
[null,null,null,null," x "]
[null,null,null,null," x "]
[null,null,null,null," x "]
[null,null,null,null," x "]
[null,null,null,null," x "]
[null,null,null,null," x "]
[null,null,null,null," x "]
[null,null,null,null," x "]
[null,null,null,null," x "]
[null,null,null,null," x "]
[null,null,null,null," x "]
[null,null,null,null," x "]
[null,null,null,null," x "]
[null,null,null,null," x "]
[null,null,null,null," x "]
[null,null,null,null," x "]
[null,null,null,null," x "]
[null,null,null,null," x "]
[null,null,null,null," x "]
[null,null,null,null," x "]
[null,null,null,null," x "]
[null,null,null,null," x "]
[null,null,null,null," x "]
[null,null,null,null," x "]
[null,null,null,null," x "]
[null,null,null,null," x "]
[null,null,null,null," x "]
[null,null,null,null," x "]
[null,null,null,null," x "]
[null,null,null,null," x "]
[null,null,null,null," x "]
[null,null,null,null," x "]
[null,null,null,null," x "]
[null,null,null,null," x "]
[null,null,null,null," x "]
[null,null,null,null," x "]
[null,null,null,null," x "]
[null,null,null,null," x "]
[null,null,null,null," x "]
[null,null,null,null," x "]
[null,null,null,null," x "]
[null,null,null,null," x "]
[null,null,null,null," x "]
[null,null,null,null," x "]
[null,null,null,null," x "]
[null,null,null,null," x "]
[null,null,null,null," x "]
[null,null,null,null," x "]
[null,null,null,null," x "]
[null,null,null,null," x "]
[null,null,null,null," x "]
[null,null,null,null," x "]
[null,null,null,null," x "]
[null,null,null,null," x "]
[null,null,null,null," x "]
[null,null,null,null," x "]
[null,null,null,null," x "]
[null,null,null,null,{"$f":"CONCATENATE(I1602,\" \",\"x\", \" \", J1602)","v":" x "}]
[null,null,null,null," x "]
[null,null,null,null," x "]
[null,null,null,null," x "]
[null,null,null,null," x "]
[null,null,null,null," x "]
[null,null,null,null," x "]
[null,null,null,null," x "]
[null,null,null,null," x "]
[null,null,null,null," x "]
[null,null,null,null," x "]
[null,null,null,null," x "]
[null,null,null,null," x "]
[null,null,null,null," x "]
[null,null,null,null," x "]
[null,null,null,null," x "]
[null,null,null,null," x "]
[null,null,null,null," x "]
[null,null,null,null," x "]
[null,null,null,null," x "]
[null,null,null,null," x "]
[null,null,null,null," x "]
[null,null,null,null," x "]
[null,null,null,null," x "]
[null,null,null,null," x "]
[null,null,null,null," x "]
[null,null,null,null," x "]
[null,null,null,null," x "]
[null,null,null,null," x "]
[null,null,null,null," x "]
[null,null,null,null," x "]
[null,null,null,null," x "]
[null,null,null,null," x "]
[null,null,null,null," x "]
[null,null,null,null," x "]
[null,null,null,null," x "]
[null,null,null,null," x "]
[null,null,null,null," x "]
[null,null,null,null," x "]
[null,null,null,null," x "]
[null,null,null,null," x "]
[null,null,null,null," x "]
[null,null,null,null," x "]
[null,null,null,null," x "]
[null,null,null,null," x "]
[null,null,null,null," x "]
[null,null,null,null," x "]
[null,null,null,null," x "]
[null,null,null,null," x "]
[null,null,null,null," x "]
[null,null,null,null," x "]
[null,null,null,null," x "]
[null,null,null,null," x "]
[null,null,null,null," x "]
[null,null,null,null," x "]
[null,null,null,null," x "]
[null,null,null,null," x "]
[null,null,null,null," x "]
[null,null,null,null," x "]
[null,null,null,null," x "]
[null,null,null,null," x "]
[null,null,null,null," x "]
[null,null,null,null," x "]
[null,null,null,null," x "]
[null,null,null,null,{"$f":"CONCATENATE(I1666,\" \",\"x\", \" \", J1666)","v":" x "}]
[null,null,null,null," x "]
[null,null,null,null," x "]
[null,null,null,null," x "]
[null,null,null,null," x "]
[null,null,null,null," x "]
[null,null,null,null," x "]
[null,null,null,null," x "]
[null,null,null,null," x "]
[null,null,null,null," x "]
[null,null,null,null," x "]
[null,null,null,null," x "]
[null,null,null,null," x "]
[null,null,null,null," x "]
[null,null,null,null," x "]
[null,null,null,null," x "]
[null,null,null,null," x "]
[null,null,null,null," x "]
[null,null,null,null," x "]
[null,null,null,null," x "]
[null,null,null,null," x "]
[null,null,null,null," x "]
[null,null,null,null," x "]
[null,null,null,null," x "]
[null,null,null,null," x "]
[null,null,null,null," x "]
[null,null,null,null," x "]
[null,null,null,null," x "]
[null,null,null,null," x "]
[null,null,null,null," x "]
[null,null,null,null," x "]
[null,null,null,null," x "]
[null,null,null,null," x "]
[null,null,null,null," x "]
[null,null,null,null," x "]
[null,null,null,null," x "]
[null,null,null,null," x "]
[null,null,null,null," x "]
[null,null,null,null," x "]
[null,null,null,null," x "]
[null,null,null,null," x "]
[null,null,null,null," x "]
[null,null,null,null," x "]
[null,null,null,null," x "]
[null,null,null,null," x "]
[null,null,null,null," x "]
[null,null,null,null," x "]
[null,null,null,null," x "]
[null,null,null,null," x "]
[null,null,null,null," x "]
[null,null,null,null," x "]
[null,null,null,null," x "]
[null,null,null,null," x "]
[null,null,null,null," x "]
[null,null,null,null," x "]
[null,null,null,null," x "]
[null,null,null,null," x "]
[null,null,null,null," x "]
[null,null,null,null," x "]
[null,null,null,null," x "]
[null,null,null,null," x "]
[null,null,null,null," x "]
[null,null,null,null," x "]
[null,null,null,null," x "]
[null,null,null,null,{"$f":"CONCATENATE(I1730,\" \",\"x\", \" \", J1730)","v":" x "}]
[null,null,null,null," x "]
[null,null,null,null," x "]
[null,null,null,null," x "]
[null,null,null,null," x "]
[null,null,null,null," x "]
[null,null,null,null," x "]
[null,null,null,null," x "]
[null,null,null,null," x "]
[null,null,null,null," x "]
[null,null,null,null," x "]
[null,null,null,null," x "]
[null,null,null,null," x "]
[null,null,null,null," x "]
[null,null,null,null," x "]
[null,null,null,null," x "]
[null,null,null,null," x "]
[null,null,null,null," x "]
[null,null,null,null," x "]
[null,null,null,null," x "]
[null,null,null,null," x "]
[null,null,null,null," x "]
[null,null,null,null," x "]
[null,null,null,null," x "]
[null,null,null,null," x "]
[null,null,null,null," x "]
[null,null,null,null," x "]
[null,null,null,null," x "]
[null,null,null,null," x "]
[null,null,null,null," x "]
[null,null,null,null," x "]
[null,null,null,null," x "]
[null,null,null,null," x "]
[null,null,null,null," x "]
[null,null,null,null," x "]
[null,null,null,null," x "]
[null,null,null,null," x "]
[null,null,null,null," x "]
[null,null,null,null," x "]
[null,null,null,null," x "]
[null,null,null,null," x "]
[null,null,null,null," x "]
[null,null,null,null," x "]
[null,null,null,null," x "]
[null,null,null,null," x "]
[null,null,null,null," x "]
[null,null,null,null," x "]
[null,null,null,null," x "]
[null,null,null,null," x "]
[null,null,null,null," x "]
[null,null,null,null," x "]
[null,null,null,null," x "]
[null,null,null,null," x "]
[null,null,null,null," x "]
[null,null,null,null," x "]
[null,null,null,null," x "]
[null,null,null,null," x "]
[null,null,null,null," x "]
[null,null,null,null," x "]
[null,null,null,null," x "]
[null,null,null,null," x "]
[null,null,null,null," x "]
[null,null,null,null," x "]
[null,null,null,null," x "]
[null,null,null,null,{"$f":"CONCATENATE(I1794,\" \",\"x\", \" \", J1794)","v":" x "}]
[null,null,null,null," x "]
[null,null,null,null," x "]
[null,null,null,null," x "]
[null,null,null,null," x "]
[null,null,null,null," x "]
[null,null,null,null," x "]
[null,null,null,null," x "]
[null,null,null,null," x "]
[null,null,null,null," x "]
[null,null,null,null," x "]
[null,null,null,null," x "]
[null,null,null,null," x "]
[null,null,null,null," x "]
[null,null,null,null," x "]
[null,null,null,null," x "]
[null,null,null,null," x "]
[null,null,null,null," x "]
[null,null,null,null," x "]
[null,null,null,null," x "]
[null,null,null,null," x "]
[null,null,null,null," x "]
[null,null,null,null," x "]
[null,null,null,null," x "]
[null,null,null,null," x "]
[null,null,null,null," x "]
[null,null,null,null," x "]
[null,null,null,null," x "]
[null,null,null,null," x "]
[null,null,null,null," x "]
[null,null,null,null," x "]
[null,null,null,null," x "]
[null,null,null,null," x "]
[null,null,null,null," x "]
[null,null,null,null," x "]
[null,null,null,null," x "]
[null,null,null,null," x "]
[null,null,null,null," x "]
[null,null,null,null," x "]
[null,null,null,null," x "]
[null,null,null,null," x "]
[null,null,null,null," x "]
[null,null,null,null," x "]
[null,null,null,null," x "]
[null,null,null,null," x "]
[null,null,null,null," x "]
[null,null,null,null," x "]
[null,null,null,null," x "]
[null,null,null,null," x "]
[null,null,null,null," x "]
[null,null,null,null," x "]
[null,null,null,null," x "]
[null,null,null,null," x "]
[null,null,null,null," x "]
[null,null,null,null," x "]
[null,null,null,null," x "]
[null,null,null,null," x "]
[null,null,null,null," x "]
[null,null,null,null," x "]
[null,null,null,null," x "]
[null,null,null,null," x "]
[null,null,null,null," x "]
[null,null,null,null," x "]
[null,null,null,null," x "]
[null,null,null,null,{"$f":"CONCATENATE(I1858,\" \",\"x\", \" \", J1858)","v":" x "}]
[null,null,null,null," x "]
[null,null,null,null," x "]
[null,null,null,null," x "]
[null,null,null,null," x "]
[null,null,null,null," x "]
[null,null,null,null," x "]
[null,null,null,null," x "]
[null,null,null,null," x "]
[null,null,null,null," x "]
[null,null,null,null," x "]
[null,null,null,null," x "]
[null,null,null,null," x "]
[null,null,null,null," x "]
[null,null,null,null," x "]
[null,null,null,null," x "]
[null,null,null,null," x "]
[null,null,null,null," x "]
[null,null,null,null," x "]
[null,null,null,null," x "]
[null,null,null,null," x "]
[null,null,null,null," x "]
[null,null,null,null," x "]
[null,null,null,null," x "]
[null,null,null,null," x "]
[null,null,null,null," x "]
[null,null,null,null," x "]
[null,null,null,null," x "]
[null,null,null,null," x "]
[null,null,null,null," x "]
[null,null,null,null," x "]
[null,null,null,null," x "]
[null,null,null,null," x "]
[null,null,null,null," x "]
[null,null,null,null," x "]
[null,null,null,null," x "]
[null,null,null,null," x "]
[null,null,null,null," x "]
[null,null,null,null," x "]
[null,null,null,null," x "]
[null,null,null,null," x "]
[null,null,null,null," x "]
[null,null,null,null," x "]
[null,null,null,null," x "]
[null,null,null,null," x "]
[null,null,null,null," x "]
[null,null,null,null," x "]
[null,null,null,null," x "]
[null,null,null,null," x "]
[null,null,null,null," x "]
[null,null,null,null," x "]
[null,null,null,null," x "]
[null,null,null,null," x "]
[null,null,null,null," x "]
[null,null,null,null," x "]
[null,null,null,null," x "]
[null,null,null,null," x "]
[null,null,null,null," x "]
[null,null,null,null," x "]
[null,null,null,null," x "]
[null,null,null,null," x "]
[null,null,null,null," x "]
[null,null,null,null," x "]
[null,null,null,null," x "]
[null,null,null,null,{"$f":"CONCATENATE(I1922,\" \",\"x\", \" \", J1922)","v":" x "}]
[null,null,null,null," x "]
[null,null,null,null," x "]
[null,null,null,null," x "]
[null,null,null,null," x "]
[null,null,null,null," x "]
[null,null,null,null," x "]
[null,null,null,null," x "]
[null,null,null,null," x "]
[null,null,null,null," x "]
[null,null,null,null," x "]
[null,null,null,null," x "]
[null,null,null,null," x "]
[null,null,null,null," x "]
[null,null,null,null," x "]
[null,null,null,null," x "]
[null,null,null,null," x "]
[null,null,null,null," x "]
[null,null,null,null," x "]
[null,null,null,null," x "]
[null,null,null,null," x "]
[null,null,null,null," x "]
[null,null,null,null," x "]
[null,null,null,null," x "]
[null,null,null,null," x "]
[null,null,null,null," x "]
[null,null,null,null," x "]
[null,null,null,null," x "]
[null,null,null,null," x "]
[null,null,null,null," x "]
[null,null,null,null," x "]
[null,null,null,null," x "]
[null,null,null,null," x "]
[null,null,null,null," x "]
[null,null,null,null," x "]
[null,null,null,null," x "]
[null,null,null,null," x "]
[null,null,null,null," x "]
[null,null,null,null," x "]
[null,null,null,null," x "]
[null,null,null,null," x "]
[null,null,null,null," x "]
[null,null,null,null," x "]
[null,null,null,null," x "]
[null,null,null,null," x "]
[null,null,null,null," x "]
[null,null,null,null," x "]
[null,null,null,null," x "]
[null,null,null,null," x "]
[null,null,null,null," x "]
[null,null,null,null," x "]
[null,null,null,null," x "]
[null,null,null,null," x "]
[null,null,null,null," x "]
[null,null,null,null," x "]
[null,null,null,null," x "]
[null,null,null,null," x "]
[null,null,null,null," x "]
[null,null,null,null," x "]
[null,null,null,null," x "]
[null,null,null,null," x "]
[null,null,null,null," x "]
[null,null,null,null," x "]
[null,null,null,null," x "]
[null,null,null,null,{"$f":"CONCATENATE(I1986,\" \",\"x\", \" \", J1986)","v":" x "}]
[null,null,null,null," x "]
[null,null,null,null," x "]
[null,null,null,null," x "]
[null,null,null,null," x "]
[null,null,null,null," x "]
[null,null,null,null," x "]
[null,null,null,null," x "]
[null,null,null,null," x "]
[null,null,null,null," x "]
[null,null,null,null," x "]
[null,null,null,null," x "]
[null,null,null,null," x "]
[null,null,null,null," x "]
[null,null,null,null," x "]
[null,null,null,null," x "]
[null,null,null,null," x "]
[null,null,null,null," x "]
[null,null,null,null," x "]
[null,null,null,null," x "]
[null,null,null,null," x "]
[null,null,null,null," x "]
[null,null,null,null," x "]
[null,null,null,null," x "]
[null,null,null,null," x "]
[null,null,null,null," x "]
[null,null,null,null," x "]
[null,null,null,null," x "]
[null,null,null,null," x "]
[null,null,null,null," x "]
[null,null,null,null," x "]
[null,null,null,null," x "]
[null,null,null,null,{"$f":"CONCATENATE(I2562,\" \",\"x\", \" \", J2562)","v":" x "}]
[null,null,null,null," x "]
[null,null,null,null," x "]
[null,null,null,null," x "]
[null,null,null,null," x "]
[null,null,null,null," x "]
[null,null,null,null," x "]
[null,null,null,null," x "]
[null,null,null,null," x "]
[null,null,null,null," x "]
[null,null,null,null," x "]
[null,null,null,null," x "]
[null,null,null,null," x "]
[null,null,null,null," x "]
[null,null,null,null," x "]
[null,null,null,null," x "]
[null,null,null,null," x "]
[null,null,null,null," x "]
[null,null,null,null," x "]
[null,null,null,null," x "]
[null,null,null,null," x "]
[null,null,null,null," x "]
[null,null,null,null," x "]
[null,null,null,null," x "]
[null,null,null,null," x "]
[null,null,null,null," x "]
[null,null,null,null," x "]
[null,null,null,null," x "]
[null,null,null,null," x "]
[null,null,null,null," x "]
[null,null,null,null," x "]
[null,null,null,null,{"$f":"CONCATENATE(I3522,\" \",\"x\", \" \", J3522)","v":" x "}]
[null,null,null,null," x "]
[null,null,null,null," x "]
[null,null,null,null," x "]
[null,null,null,null," x "]
[null,null,null,null," x "]
[null,null,null,null," x "]
[null,null,null,null," x "]
[null,null,null,null," x "]
[null,null,null,null," x "]
[null,null,null,null," x "]
[null,null,null,null," x "]
[null,null,null,null," x "]
[null,null,null,null," x "]
[null,null,null,null," x "]
[null,null,null,null," x "]
[null,null,null,null," x "]
[null,null,null,null," x "]
[null,null,null,null," x "]
[null,null,null,null," x "]
[null,null,null,null," x "]
[null,null,null,null," x "]
[null,null,null,null," x "]
[null,null,null,null," x "]
[null,null,null,null," x "]
[null,null,null,null," x "]
[null,null,null,null," x "]
[null,null,null,null," x "]
[null,null,null,null," x "]
[null,null,null,null," x "]
[null,null,null,null," x "]
[null,null,null,null," x "]
[null,null,null,null," x "]
[null,null,null,null," x "]
[null,null,null,null," x "]
[null,null,null,null," x "]
[null,null,null,null," x "]
[null,null,null,null," x "]
[null,null,null,null," x "]
[null,null,null,null," x "]
[null,null,null,null," x "]
[null,null,null,null," x "]
[null,null,null,null," x "]
[null,null,null,null," x "]
[null,null,null,null," x "]
[null,null,null,null," x "]
[null,null,null,null," x "]
[null,null,null,null," x "]
[null,null,null,null," x "]
[null,null,null,null," x "]
[null,null,null,null," x "]
[null,null,null,null," x "]
[null,null,null,null," x "]
[null,null,null,null," x "]
[null,null,null,null," x "]
[null,null,null,null," x "]
[null,null,null,null," x "]
[null,null,null,null," x "]
[null,null,null,null," x "]
[null,null,null,null,{"$f":"CONCATENATE(I5378,\" \",\"x\", \" \", J5378)","v":" x "}]
[null,null,null,null," x "]
[null,null,null,null," x "]
[null,null,null,null," x "]
[null,null,null,null," x "]
[null,null,null,null," x "]
[null,null,null,null," x "]
[null,null,null,null," x "]
[null,null,null,null," x "]
[null,null,null,null," x "]
[null,null,null,null," x "]
[null,null,null,null," x "]
[null,null,null,null," x "]
[null,null,null,null," x "]
[null,null,null,null," x "]
[null,null,null,null," x "]
[null,null,null,null," x "]
[null,null,null,null," x "]
[null,null,null,null," x "]
[null,null,null,null," x "]
[null,null,null,null," x "]
[null,null,null,null," x "]
[null,null,null,null," x "]
[null,null,null,null," x "]
[null,null,null,null," x "]
[null,null,null,null," x "]
[null,null,null,null," x "]
[null,null,null,null," x "]
[null,null,null,null," x "]
[null,null,null,null," x "]
[null,null,null,null," x "]
[null,null,null,null," x "]
[null,null,null,null," x "]
[null,null,null,null," x "]
[null,null,null,null," x "]
[null,null,null,null," x "]
[null,null,null,null," x "]
[null,null,null,null," x "]
[null,null,null,null," x "]
[null,null,null,null," x "]
[null,null,null,null," x "]
[null,null,null,null," x "]
[null,null,null,null," x "]
[null,null,null,null," x "]
[null,null,null,null," x "]
[null,null,null,null," x "]
[null,null,null,null," x "]
[null,null,null,null," x "]
[null,null,null,null," x "]
[null,null,null,null," x "]
[null,null,null,null," x "]
[null,null,null,null," x "]
[null,null,null,null," x "]
[null,null,null,null," x "]
[null,null,null,null," x "]
[null,null,null,null," x "]
[null,null,null,null," x "]
[null,null,null,null," x "]
[null,null,null,null," x "]
[null,null,null,null," x "]
[null,null,null,null," x "]
[null,null,null,null," x "]
[null,null,null,null," x "]
[null,null,null,null," x "]
[null,null,null,null," x "]
[null,null,null,null," x "]
[null,null,null,null," x "]
[null,null,null,null," x "]
[null,null,null,null," x "]
[null,null,null,null," x "]
[null,null,null,null," x "]
[null,null,null,null," x "]
[null,null,null,null," x "]
[null,null,null,null," x "]
[null,null,null,null," x "]
[null,null,null,null," x "]
[null,null,null,null," x "]
[null,null,null,null," x "]
[null,null,null,null," x "]
[null,null,null,null," x "]
[null,null,null,null," x "]
[null,null,null,null," x "]
[null,null,null,null," x "]
[null,null,null,null," x "]
[null,null,null,null," x "]
[null,null,null,null," x "]
[null,null,null,null," x "]
[null,null,null,null," x "]
[null,null,null,null," x "]
[null,null,null,null," x "]
[null,null,null,null," x "]
[null,null,null,null," x "]
[null,null,null,null," x "]
[null,null,null,null," x "]
[null,null,null,null," x "]
[null,null,null,null," x "]
[null,null,null,null," x "]
[null,null,null,null," x "]
[null,null,null,null," x "]
[null,null,null,null," x "]
[null,null,null,null," x "]
[null,null,null,null," x "]
[null,null,null,null," x "]
[null,null,null,null," x "]
[null,null,null,null," x "]
[null,null,null,null," x "]
[null,null,null,null," x "]
[null,null,null,null," x "]
[null,null,null,null," x "]
[null,null,null,null," x "]
[null,null,null,null," x "]
[null,null,null,null," x "]
[null,null,null,null," x "]
[null,null,null,null," x "]
[null,null,null,null," x "]
[null,null,null,null," x "]
[null,null,null,null," x "]
[null,null,null,null," x "]
[null,null,null,null," x "]
[null,null,null,null," x "]
[null,null,null,null," x "]
[null,null,null,null," x "]
[null,null,null,null," x "]
[null,null,null,null," x "]
[null,null,null,null," x "]
[null,null,null,null," x "]
[null,null,null,null," x "]
[null,null,null,null," x "]
[null,null,null,null," x "]
[null,null,null,null," x "]
[null,null,null,null," x "]
[null,null,null,null," x "]
[null,null,null,null," x "]
[null,null,null,null," x "]
[null,null,null,null," x "]
[null,null,null,null," x "]
[null,null,null,null," x "]
[null,null,null,null," x "]
[null,null,null,null," x "]
[null,null,null,null," x "]
[null,null,null,null," x "]
[null,null,null,null," x "]
[null,null,null,null," x "]
[null,null,null,null," x "]
[null,null,null,null,{"$f":"CONCATENATE(I9922,\" \",\"x\", \" \", J9922)","v":" x "}]
[null,null,null,null," x "]
[null,null,null,null," x "]
[null,null,null,null," x "]
[null,null,null,null," x "]
[null,null,null,null," x "]
[null,null,null,null," x "]
[null,null,null,null," x "]
[null,null,null,null," x "]
[null,null,null,null," x "]
[null,null,null,null," x "]
[null,null,null,null," x "]
[null,null,null,null," x "]
[null,null,null,null," x "]
[null,null,null,null," x "]
[null,null,null,null," x "]
[null,null,null,null," x "]
[null,null,null,null," x "]
[null,null,null,null," x "]
[null,null,null,null," x "]
[null,null,null,null," x "]
[null,null,null,null," x "]
[null,null,null,null," x "]
[null,null,null,null," x "]
[null,null,null,null," x "]
[null,null,null,null," x "]
[null,null,null,null," x "]
[null,null,null,null," x "]
[null,null,null,null," x "]
[null,null,null,null," x "]
[null,null,null,null," x "]
[null,null,null,null," x "]
[null,null,null,null," x "]
[null,null,null,null," x "]
[null,null,null,null," x "]
[null,null,null,null," x "]
[null,null,null,null," x "]
[null,null,null,null," x "]
[null,null,null,null," x "]
[null,null,null,null," x "]
[null,null,null,null," x "]
[null,null,null,null," x "]
[null,null,null,null," x "]
[null,null,null,null," x "]
[null,null,null,null," x "]
[null,null,null,null," x "]
[null,null,null,null," x "]
[null,null,null,null," x "]
[null,null,null,null," x "]
[null,null,null,null," x "]
[null,null,null,null," x "]
[null,null,null,null," x "]
[null,null,null,null," x "]
[null,null,null,null," x "]
[null,null,null,null," x "]
[null,null,null,null," x "]
[null,null,null,null," x "]
[null,null,null,null," x "]
[null,null,null,null," x "]
[null,null,null,null," x "]
[null,null,null,null," x "]
[null,null,null,null," x "]
[null,null,null,null," x "]
[null,null,null,null," x "]
[null,null,null,null," x "]
[null,null,null,null," x "]
[null,null,null,null," x "]
[null,null,null,null," x "]
[null,null,null,null," x "]
[null,null,null,null," x "]
[null,null,null,null," x "]
[null,null,null,null," x "]
[null,null,null,null," x "]
[null,null,null,null," x "]
[null,null,null,null," x "]
[null,null,null,null," x "]
[null,null,null,null," x "]
[null,null,null,null," x "]
[null,null,null,null," x "]
[null,null,null,null," x "]
[null,null,null,null," x "]
[null,null,null,null," x "]
[null,null,null,null," x "]
[null,null,null,null," x "]
[null,null,null,null," x "]
[null,null,null,null," x "]
[null,null,null,null," x "]
[null,null,null,null," x "]
[null,null,null,null," x "]
[null,null,null,null," x "]
[null,null,null,null," x "]
[null,null,null,null," x "]
[null,null,null,null," x "]
[null,null,null,null," x "]
[null,null,null,null," x "]
[null,null,null,null," x "]
[null,null,null,null," x "]
[null,null,null,null," x "]
[null,null,null,null," x "]
[null,null,null,null," x "]
[null,null,null,null," x "]
[null,null,null,null," x "]
[null,null,null,null," x "]
[null,null,null,null," x "]
[null,null,null,null," x "]
[null,null,null,null," x "]
[null,null,null,null," x "]
[null,null,null,null," x "]
[null,null,null,null," x "]
[null,null,null,null," x "]
[null,null,null,null," x "]
[null,null,null,null," x "]
[null,null,null,null," x "]
[null,null,null,null," x "]
[null,null,null,null," x "]
[null,null,null,null," x "]
[null,null,null,null," x "]
[null,null,null,null," x "]
[null,null,null,null," x "]
[null,null,null,null," x "]
[null,null,null,null," x "]
[null,null,null,null," x "]
[null,null,null,null," x "]
[null,null,null,null," x "]
[null,null,null,null," x "]
[null,null,null,null," x "]
[null,null,null,null," x "]
[null,null,null,null," x "]
[null,null,null,null,{"$f":"CONCATENATE(I13954,\" \",\"x\", \" \", J13954)","v":" x "}]
[null,null,null,null," x "]
[null,null,null,null," x "]
[null,null,null,null," x "]
[null,null,null,null," x "]
[null,null,null,null," x "]
[null,null,null,null," x "]
[null,null,null,null," x "]
[null,null,null,null," x "]
[null,null,null,null," x "]
[null,null,null,null," x "]
[null,null,null,null," x "]
[null,null,null,null," x "]
[null,null,null,null," x "]
[null,null,null,null," x "]
[null,null,null,null," x "]
[null,null,null,null," x "]
[null,null,null,null," x "]
[null,null,null,null," x "]
[null,null,null,null," x "]
[null,null,null,null," x "]
[null,null,null,null," x "]
[null,null,null,null," x "]
[null,null,null,null," x "]
[null,null,null,null," x "]
[null,null,null,null," x "]
[null,null,null,null," x "]
[null,null,null,null," x "]
[null,null,null,null," x "]
[null,null,null,null," x "]
[null,null,null,null," x "]
[null,null,null,null," x "]
[null,null,null,null," x "]
[null,null,null,null," x "]
[null,null,null,null," x "]
[null,null,null,null," x "]
[null,null,null,null," x "]
[null,null,null,null," x "]
[null,null,null,null," x "]
[null,null,null,null," x "]
[null,null,null,null," x "]
[null,null,null,null," x "]
[null,null,null,null," x "]
[null,null,null,null," x "]
[null,null,null,null," x "]
[null,null,null,null," x "]
[null,null,null,null," x "]
[null,null,null,null," x "]
[null,null,null,null," x "]
[null,null,null,null," x "]
[null,null,null,null," x "]
[null,null,null,null," x "]
[null,null,null,null," x "]
[null,null,null,null," x "]
[null,null,null,null," x "]
[null,null,null,null," x "]
[null,null,null,null," x "]
[null,null,null,null," x "]
[null,null,null,null," x "]
[null,null,null,null," x "]
[null,null,null,null," x "]
[null,null,null,null," x "]
[null,null,null,null," x "]
[null,null,null,null," x "]
[null,null,null,null," x "]
[null,null,null,null," x "]
[null,null,null,null," x "]
[null,null,null,null," x "]
[null,null,null,null," x "]
[null,null,null,null," x "]
[null,null,null,null," x "]
[null,null,null,null," x "]
[null,null,null,null," x "]
[null,null,null,null," x "]
[null,null,null,null," x "]
[null,null,null,null," x "]
[null,null,null,null," x "]
[null,null,null,null," x "]
[null,null,null,null," x "]
[null,null,null,null," x "]
[null,null,null,null," x "]
[null,null,null,null," x "]
[null,null,null,null," x "]
[null,null,null,null," x "]
[null,null,null,null," x "]
[null,null,null,null," x "]
[null,null,null,null," x "]
[null,null,null,null," x "]
[null,null,null,null," x "]
[null,null,null,null," x "]
[null,null,null,null," x "]
[null,null,null,null," x "]
[null,null,null,null," x "]
[null,null,null,null," x "]
[null,null,null,null," x "]
[null,null,null,null," x "]
[null,null,null,null," x "]
[null,null,null,null," x "]
[null,null,null,null," x "]
[null,null,null,null," x "]
[null,null,null,null," x "]
[null,null,null,null,{"$f":"CONCATENATE(I17154,\" \",\"x\", \" \", J17154)","v":" x "}]
[null,null,null,null," x "]
[null,null,null,null," x "]
[null,null,null,null," x "]
[null,null,null,null," x "]
[null,null,null,null," x "]
[null,null,null,null," x "]
[null,null,null,null," x "]
[null,null,null,null," x "]
[null,null,null,null," x "]
[null,null,null,null," x "]
[null,null,null,null," x "]
[null,null,null,null," x "]
[null,null,null,null," x "]
[null,null,null,null," x "]
[null,null,null,null," x "]
[null,null,null,null," x "]
[null,null,null,null," x "]
[null,null,null,null," x "]
[null,null,null,null," x "]
[null,null,null,null," x "]
[null,null,null,null," x "]
[null,null,null,null," x "]
[null,null,null,null," x "]
[null,null,null,null," x "]
[null,null,null,null," x "]
[null,null,null,null," x "]
[null,null,null,null," x "]
[null,null,null,null," x "]
[null,null,null,null," x "]
[null,null,null,null," x "]
[null,null,null,null,{"$f":"CONCATENATE(I18114,\" \",\"x\", \" \", J18114)","v":" x "}]
[null,null,null,null," x "]
[null,null,null,null," x "]
[null,null,null,null," x "]
[null,null,null,null," x "]
[null,null,null,null," x "]
[null,null,null,null," x "]
[null,null,null,null," x "]
[null,null,null,null," x "]
[null,null,null,null," x "]
[null,null,null,null," x "]
[null,null,null,null," x "]
[null,null,null,null," x "]
[null,null,null,null," x "]
[null,null,null,null," x "]
[null,null,null,null," x "]
[null,null,null,null," x "]
[null,null,null,null," x "]
[null,null,null,null," x "]
[null,null,null,null," x "]
[null,null,null,null," x "]
[null,null,null,null," x "]
[null,null,null,null," x "]
[null,null,null,null," x "]
[null,null,null,null," x "]
[null,null,null,null," x "]
[null,null,null,null," x "]
[null,null,null,null," x "]
[null,null,null,null," x "]
[null,null,null,null," x "]
[null,null,null,null," x "]
[null,null,null,null," x "]
[null,null,null,null," x "]
[null,null,null,null," x "]
[null,null,null,null," x "]
[null,null,null,null," x "]
[null,null,null,null," x "]
[null,null,null,null," x "]
[null,null,null,null," x "]
[null,null,null,null," x "]
[null,null,null,null," x "]
[null,null,null,null," x "]
[null,null,null,null," x "]
[null,null,null,null," x "]
[null,null,null,null," x "]
[null,null,null,null," x "]
[null,null,null,null," x "]
[null,null,null,null," x "]
[null,null,null,null," x "]
[null,null,null,null," x "]
[null,null,null,null," x "]
[null,null,null,null," x "]
[null,null,null,null," x "]
[null,null,null,null," x "]
[null,null,null,null," x "]
[null,null,null,null," x "]
[null,null,null,null," x "]
[null,null,null,null," x "]
[null,null,null,null," x "]
[null,null,null,null," x "]
[null,null,null,null," x "]
[null,null,null,null," x "]
[null,null,null,null," x "]
[null,null,null,null," x "]
[null,null,null,null," x "]
[null,null,null,null," x "]
[null,null,null,null," x "]
[null,null,null,null," x "]
[null,null,null,null," x "]
[null,null,null,null," x "]
[null,null,null,null," x "]
[null,null,null,null," x "]
[null,null,null,null," x "]
[null,null,null,null," x "]
[null,null,null,null," x "]
[null,null,null,null," x "]
[null,null,null,null," x "]
[null,null,null,null," x "]
[null,null,null,null," x "]
[null,null,null,null," x "]
[null,null,null,null," x "]
[null,null,null,null," x "]
[null,null,null,null," x "]
[null,null,null,null," x "]
[null,null,null,null," x "]
[null,null,null,null," x "]
[null,null,null,null," x "]
[null,null,null,null," x "]
[null,null,null,null," x "]
[null,null,null,null," x "]
[null,null,null,null," x "]
[null,null,null,null," x "]
[null,null,null,null," x "]
[null,null,null,null,{"$f":"CONCATENATE(I21058,\" \",\"x\", \" \", J21058)","v":" x "}]
[null,null,null,null," x "]
[null,null,null,null," x "]
[null,null,null,null," x "]
[null,null,null,null," x "]
[null,null,null,null," x "]
[null,null,null,null," x "]
[null,null,null,null," x "]
[null,null,null,null," x "]
[null,null,null,null," x "]
[null,null,null,null," x "]
[null,null,null,null," x "]
[null,null,null,null," x "]
[null,null,null,null," x "]
[null,null,null,null," x "]
[null,null,null,null," x "]
[null,null,null,null," x "]
[null,null,null,null," x "]
[null,null,null,null," x "]
[null,null,null,null," x "]
[null,null,null,null," x "]
[null,null,null,null," x "]
[null,null,null,null," x "]
[null,null,null,null," x "]
[null,null,null,null," x "]
[null,null,null,null," x "]
[null,null,null,null," x "]
[null,null,null,null," x "]
[null,null,null,null," x "]
[null,null,null,null," x "]
[null,null,null,null," x "]
[null,null,null,null,{"$f":"CONCATENATE(I22018,\" \",\"x\", \" \", J22018)","v":" x "}]
[null,null,null,null," x "]
[null,null,null,null," x "]
[null,null,null,null," x "]
[null,null,null,null," x "]
[null,null,null,null," x "]
[null,null,null,null," x "]
[null,null,null,null," x "]
[null,null,null,null," x "]
[null,null,null,null," x "]
[null,null,null,null," x "]
[null,null,null,null," x "]
[null,null,null,null," x "]
[null,null,null,null," x "]
[null,null,null,null," x "]
[null,null,null,null," x "]
[null,null,null,null,{"$f":"CONCATENATE(I22530,\" \",\"x\", \" \", J22530)","v":" x "}]
[null,null,null,null," x "]
[null,null,null,null," x "]
[null,null,null,null," x "]
[null,null,null,null," x "]
[null,null,null,null," x "]
[null,null,null,null," x "]
[null,null,null,null," x "]
[null,null,null,null," x "]
[null,null,null,null," x "]
[null,null,null,null," x "]
[null,null,null,null," x "]
[null,null,null,null," x "]
[null,null,null,null," x "]
[null,null,null,null," x "]
[null,null,null,null," x "]
[null,null,null,null," x "]
[null,null,null,null," x "]
[null,null,null,null," x "]
[null,null,null,null," x "]
[null,null,null,null," x "]
[null,null,null,null," x "]
[null,null,null,null," x "]
[null,null,null,null," x "]
[null,null,null,null," x "]
[null,null,null,null," x "]
[null,null,null,null," x "]
[null,null,null,null," x "]
[null,null,null,null," x "]
[null,null,null,null," x "]
[null,null,null,null," x "]
[null,null,null,null," x "]
[null,null,null,null," x "]
[null,null,null,null," x "]
[null,null,null,null," x "]
[null,null,null,null," x "]
[null,null,null,null," x "]
[null,null,null,null," x "]
[null,null,null,null," x "]
[null,null,null,null," x "]
[null,null,null,null," x "]
[null,null,null,null," x "]
[null,null,null,null," x "]
[null,null,null,null," x "]
[null,null,null,null," x "]
[null,null,null,null," x "]
[null,null,null,null," x "]
[null,null,null,null," x "]
[null,null,null,null," x "]
[null,null,null,null," x "]
[null,null,null,null," x "]
[null,null,null,null," x "]
[null,null,null,null," x "]
[null,null,null,null," x "]
[null,null,null,null," x "]
[null,null,null,null," x "]
[null,null,null,null," x "]
[null,null,null,null," x "]
[null,null,null,null," x "]
[null,null,null,null," x "]
[null,null,null,null," x "]
[null,null,null,null," x "]
[null,null,null,null," x "]
[null,null,null,null," x "]
[null,null,null,null," x "]
[null,null,null,null," x "]
[null,null,null,null," x "]
[null,null,null,null," x "]
[null,null,null,null," x "]
[null,null,null,null," x "]
[null,null,null,null," x "]
[null,null,null,null," x "]
[null,null,null,null," x "]
[null,null,null,null," x "]
[null,null,null,null," x "]
[null,null,null,null," x "]
[null,null,null,null," x "]
[null,null,null,null," x "]
[null,null,null,null," x "]
[null,null,null,null," x "]
[null,null,null,null," x "]
[null,null,null,null," x "]
[null,null,null,null," x "]
[null,null,null,null," x "]
[null,null,null,null," x "]
[null,null,null,null," x "]
[null,null,null,null," x "]
[null,null,null,null," x "]
[null,null,null,null," x "]
[null,null,null,null," x "]
[null,null,null,null," x "]
[null,null,null,null," x "]
[null,null,null,null," x "]
[null,null,null,null," x "]
[null,null,null,null," x "]
[null,null,null,null,{"$f":"CONCATENATE(I25538,\" \",\"x\", \" \", J25538)","v":" x "}]
[null,null,null,null," x "]
[null,null,null,null," x "]
[null,null,null,null," x "]
[null,null,null,null," x "]
[null,null,null,null," x "]
[null,null,null,null," x "]
[null,null,null,null," x "]
[null,null,null,null," x "]
[null,null,null,null," x "]
[null,null,null,null," x "]
[null,null,null,null," x "]
[null,null,null,null," x "]
[null,null,null,null," x "]
[null,null,null,null," x "]
[null,null,null,null," x "]
[null,null,null,null," x "]
[null,null,null,null," x "]
[null,null,null,null," x "]
[null,null,null,null," x "]
[null,null,null,null," x "]
[null,null,null,null," x "]
[null,null,null,null," x "]
[null,null,null,null," x "]
[null,null,null,null," x "]
[null,null,null,null," x "]
[null,null,null,null," x "]
[null,null,null,null," x "]
[null,null,null,null," x "]
[null,null,null,null," x "]
[null,null,null,null," x "]
[null,null,null,null," x "]
[null,null,null,null," x "]
[null,null,null,null," x "]
[null,null,null,null," x "]
[null,null,null,null," x "]
[null,null,null,null," x "]
[null,null,null,null," x "]
[null,null,null,null," x "]
[null,null,null,null," x "]
[null,null,null,null," x "]
[null,null,null,null," x "]
[null,null,null,null," x "]
[null,null,null,null," x "]
[null,null,null,null," x "]
[null,null,null,null," x "]
[null,null,null,null," x "]
[null,null,null,null," x "]
[null,null,null,null," x "]
[null,null,null,null," x "]
[null,null,null,null," x "]
[null,null,null,null," x "]
[null,null,null,null," x "]
[null,null,null,null," x "]
[null,null,null,null," x "]
[null,null,null,null," x "]
[null,null,null,null," x "]
[null,null,null,null," x "]
[null,null,null,null," x "]
[null,null,null,null," x "]
[null,null,null,null," x "]
[null,null,null,null," x "]
[null,null,null,null," x "]
[null,null,null,null," x "]
[null,null,null,null," x "]
[null,null,null,null," x "]
[null,null,null,null," x "]
[null,null,null,null," x "]
[null,null,null,null," x "]
[null,null,null,null," x "]
[null,null,null,null," x "]
[null,null,null,null," x "]
[null,null,null,null," x "]
[null,null,null,null," x "]
[null,null,null,null," x "]
[null,null,null,null," x "]
[null,null,null,null," x "]
[null,null,null,null," x "]
[null,null,null,null," x "]
[null,null,null,null," x "]
[null,null,null,null," x "]
[null,null,null,null," x "]
[null,null,null,null," x "]
[null,null,null,null," x "]
[null,null,null,null," x "]
[null,null,null,null," x "]
[null,null,null,null," x "]
[null,null,null,null," x "]
[null,null,null,null," x "]
[null,null,null,null," x "]
[null,null,null,null," x "]
[null,null,null,null," x "]
[null,null,null,null," x "]
[null,null,null,null," x "]
[null,null,null,null," x "]
[null,null,null,null," x "]
[null,null,null,null," x "]
[null,null,null,null," x "]
[null,null,null,null," x "]
[null,null,null,null," x "]
[null,null,null,null," x "]
[null,null,null,null," x "]
[null,null,null,null," x "]
[null,null,null,null," x "]
[null,null,null,null," x "]
[null,null,null,null," x "]
[null,null,null,null," x "]
[null,null,null,null," x "]
[null,null,null,null," x "]
[null,null,null,null," x "]
[null,null,null,null," x "]
[null,null,null,null," x "]
[null,null,null,null," x "]
[null,null,null,null," x "]
[null,null,null,null," x "]
[null,null,null,null," x "]
[null,null,null,null," x "]
[null,null,null,null," x "]
[null,null,null,null," x "]
[null,null,null,null," x "]
[null,null,null,null," x "]
[null,null,null,null," x "]
[null,null,null,null," x "]
[null,null,null,null," x "]
[null,null,null,null," x "]
[null,null,null,null," x "]
[null,null,null,null," x "]
[null,null,null,null," x "]
[null,null,null,null," x "]
[null,null,null,null," x "]
[null,null,null,null," x "]
[null,null,null,null," x "]
[null,null,null,null," x "]
[null,null,null,null," x "]
[null,null,null,null," x "]
[null,null,null,null," x "]
[null,null,null,null," x "]
[null,null,null,null," x "]
[null,null,null,null," x "]
[null,null,null,null," x "]
[null,null,null,null," x "]
[null,null,null,null," x "]
[null,null,null,null," x "]
[null,null,null,null," x "]
[null,null,null,null,{"$f":"CONCATENATE(I30082,\" \",\"x\", \" \", J30082)","v":" x "}]
[null,null,null,null," x "]
[null,null,null,null," x "]
[null,null,null,null," x "]
[null,null,null,null," x "]
[null,null,null,null," x "]
[null,null,null,null," x "]
[null,null,null,null," x "]
[null,null,null,null," x "]
[null,null,null,null," x "]
[null,null,null,null," x "]
[null,null,null,null," x "]
[null,null,null,null," x "]
[null,null,null,null," x "]
[null,null,null,null," x "]
[null,null,null,null," x "]
[null,null,null,null," x "]
[null,null,null,null," x "]
[null,null,null,null," x "]
[null,null,null,null," x "]
[null,null,null,null," x "]
[null,null,null,null," x "]
[null,null,null,null," x "]
[null,null,null,null," x "]
[null,null,null,null," x "]
[null,null,null,null," x "]
[null,null,null,null," x "]
[null,null,null,null," x "]
[null,null,null,null," x "]
[null,null,null,null," x "]
[null,null,null,null," x "]
[null,null,null,null," x "]
[null,null,null,null," x "]
[null,null,null,null,{"$f":"CONCATENATE(I31106,\" \",\"x\", \" \", J31106)","v":" x "}]
[null,null,null,null," x "]
[null,null,null,null," x "]
[null,null,null,null," x "]
[null,null,null,null," x "]
[null,null,null,null," x "]
[null,null,null,null," x "]
[null,null,null,null," x "]
[null,null,null,null," x "]
[null,null,null,null," x "]
[null,null,null,null," x "]
[null,null,null,null," x "]
[null,null,null,null," x "]
[null,null,null,null," x "]
[null,null,null,null," x "]
[null,null,null,null," x "]
[null,null,null,null," x "]
[null,null,null,null," x "]
[null,null,null,null," x "]
[null,null,null,null," x "]
[null,null,null,null," x "]
[null,null,null,null," x "]
[null,null,null,null," x "]
[null,null,null,null," x "]
[null,null,null,null," x "]
[null,null,null,null," x "]
[null,null,null,null," x "]
[null,null,null,null," x "]
[null,null,null,null," x "]
[null,null,null,null," x "]
[null,null,null,null," x "]
[null,null,null,null," x "]
[null,null,null,null," x "]
[null,null,null,null," x "]
[null,null,null,null," x "]
[null,null,null,null," x "]
[null,null,null,null," x "]
[null,null,null,null," x "]
[null,null,null,null," x "]
[null,null,null,null," x "]
[null,null,null,null," x "]
[null,null,null,null," x "]
[null,null,null,null," x "]
[null,null,null,null," x "]
[null,null,null,null," x "]
[null,null,null,null," x "]
[null,null,null,null," x "]
[null,null,null,null," x "]
[null,null,null,null," x "]
[null,null,null,null," x "]
[null,null,null,null," x "]
[null,null,null,null,{"$f":"CONCATENATE(I32706,\" \",\"x\", \" \", J32706)","v":" x "}]
[null,null,null,null," x "]
[null,null,null,null," x "]
[null,null,null,null," x "]
[null,null,null,null," x "]
[null,null,null,null," x "]
[null,null,null,null," x "]
[null,null,null,null," x "]
[null,null,null,null," x "]
[null,null,null,null," x "]
[null,null,null,null," x "]
[null,null,null,null," x "]
[null,null,null,null," x "]
[null,null,null,null," x "]
[null,null,null,null," x "]
[null,null,null,null," x "]
[null,null,null,null," x "]
[null,null,null,null," x "]
[null,null,null,null," x "]
[null,null,null,null," x "]
[null,null,null,null," x "]
[null,null,null,null," x "]
[null,null,null,null," x "]
[null,null,null,null," x "]
[null,null,null,null," x "]
[null,null,null,null," x "]
[null,null,null,null," x "]
[null,null,null,null," x "]
[null,null,null,null," x "]
[null,null,null,null," x "]
[null,null,null,null," x "]
[null,null,null,null," x "]
[null,null,null,null," x "]
[null,null,null,null," x "]
[null,null,null,null," x "]
[null,null,null,null," x "]
[null,null,null,null," x "]
[null,null,null,null," x "]
[null,null,null,null," x "]
[null,null,null,null," x "]
[null,null,null,null," x "]
[null,null,null,null," x "]
[null,null,null,null," x "]
[null,null,null,null," x "]
[null,null,null,null,{"$f":"CONCATENATE(I34114,\" \",\"x\", \" \", J34114)","v":" x "}]
[null,null,null,null," x "]
[null,null,null,null," x "]
[null,null,null,null," x "]
[null,null,null,null," x "]
[null,null,null,null," x "]
[null,null,null,null," x "]
[null,null,null,null," x "]
[null,null,null,null," x "]
[null,null,null,null," x "]
[null,null,null,null," x "]
[null,null,null,null," x "]
[null,null,null,null," x "]
[null,null,null,null," x "]
[null,null,null,null," x "]
[null,null,null,null," x "]
[null,null,null,null," x "]
[null,null,null,null," x "]
[null,null,null,null," x "]
[null,null,null,null," x "]
[null,null,null,null," x "]
[null,null,null,null," x "]
[null,null,null,null," x "]
[null,null,null,null," x "]
[null,null,null,null," x "]
[null,null,null,null," x "]
[null,null,null,null," x "]
[null,null,null,null," x "]
[null,null,null,null," x "]
[null,null,null,null," x "]
[null,null,null,null," x "]
[null,null,null,null," x "]
[null,null,null,null," x "]
[null,null,null,null,{"$f":"CONCATENATE(I35138,\" \",\"x\", \" \", J35138)","v":" x "}]
[null,null,null,null," x "]
[null,null,null,null," x "]
[null,null,null,null," x "]
[null,null,null,null," x "]
[null,null,null,null," x "]
[null,null,null,null," x "]
[null,null,null,null," x "]
[null,null,null,null," x "]
[null,null,null,null," x "]
[null,null,null,null," x "]
[null,null,null,null," x "]
[null,null,null,null," x "]
[null,null,null,null," x "]
[null,null,null,null," x "]
[null,null,null,null," x "]
[null,null,null,null,{"$f":"CONCATENATE(I35650,\" \",\"x\", \" \", J35650)","v":" x "}]
[null,null,null,null," x "]
[null,null,null,null," x "]
[null,null,null,null," x "]
[null,null,null,null," x "]
[null,null,null,null," x "]
[null,null,null,null," x "]
[null,null,null,null," x "]
[null,null,null,null," x "]
[null,null,null,null," x "]
[null,null,null,null," x "]
[null,null,null,null," x "]
[null,null,null,null," x "]
[null,null,null,null," x "]
[null,null,null,null," x "]
[null,null,null,null," x "]
[null,null,null,null," x "]
[null,null,null,null," x "]
[null,null,null,null," x "]
[null,null,null,null," x "]
[null,null,null,null," x "]
[null,null,null,null," x "]
[null,null,null,null," x "]
[null,null,null,null," x "]
[null,null,null,null," x "]
[null,null,null,null," x "]
[null,null,null,null," x "]
[null,null,null,null," x "]
[null,null,null,null," x "]
[null,null,null,null," x "]
[null,null,null,null," x "]
[null,null,null,null,{"$f":"CONCATENATE(I36610,\" \",\"x\", \" \", J36610)","v":" x "}]
[null,null,null,null," x "]
[null,null,null,null," x "]
[null,null,null,null," x "]
[null,null,null,null," x "]
[null,null,null,null," x "]
[null,null,null,null," x "]
[null,null,null,null," x "]
[null,null,null,null," x "]
[null,null,null,null," x "]
[null,null,null,null," x "]
[null,null,null,null," x "]
[null,null,null,null," x "]
[null,null,null,null," x "]
[null,null,null,null," x "]
[null,null,null,null," x "]
[null,null,null,null," x "]
[null,null,null,null," x "]
[null,null,null,null," x "]
[null,null,null,null," x "]
[null,null,null,null," x "]
[null,null,null,null," x "]
[null,null,null,null," x "]
[null,null,null,null," x "]
[null,null,null,null," x "]
[null,null,null,null," x "]
[null,null,null,null," x "]
[null,null,null,null," x "]
[null,null,null,null," x "]
[null,null,null,null," x "]
[null,null,null,null," x "]
[null,null,null,null," x "]
[null,null,null,null," x "]
[null,null,null,null," x "]
[null,null,null,null," x "]
[null,null,null,null," x "]
[null,null,null,null," x "]
[null,null,null,null," x "]
[null,null,null,null," x "]
[null,null,null,null," x "]
[null,null,null,null," x "]
[null,null,null,null," x "]
[null,null,null,null," x "]
[null,null,null,null," x "]
[null,null,null,null," x "]
[null,null,null,null," x "]
[null,null,null,null," x "]
[null,null,null,null," x "]
[null,null,null,null," x "]
[null,null,null,null," x "]
[null,null,null,null," x "]
[null,null,null,null," x "]
[null,null,null,null," x "]
[null,null,null,null," x "]
[null,null,null,null," x "]
[null,null,null,null," x "]
[null,null,null,null," x "]
[null,null,null,null," x "]
[null,null,null,null," x "]
[null,null,null,null," x "]
[null,null,null,null," x "]
[null,null,null,null," x "]
[null,null,null,null," x "]
[null,null,null,null," x "]
[null,null,null,null," x "]
[null,null,null,null," x "]
[null,null,null,null," x "]
[null,null,null,null," x "]
[null,null,null,null," x "]
[null,null,null,null," x "]
[null,null,null,null," x "]
[null,null,null,null," x "]
[null,null,null,null," x "]
[null,null,null,null," x "]
[null,null,null,null," x "]
[null,null,null,null," x "]
[null,null,null,null," x "]
[null,null,null,null," x "]
[null,null,null,null," x "]
[null,null,null,null," x "]
[null,null,null,null," x "]
[null,null,null,null," x "]
[null,null,null,null," x "]
[null,null,null,null," x "]
[null,null,null,null," x "]
[null,null,null,null," x "]
[null,null,null,null," x "]
[null,null,null,null," x "]
[null,null,null,null," x "]
[null,null,null,null," x "]
[null,null,null,null," x "]
[null,null,null,null," x "]
[null,null,null,null," x "]
[null,null,null,null,{"$f":"CONCATENATE(I39554,\" \",\"x\", \" \", J39554)","v":" x "}]
[null,null,null,null," x "]
[null,null,null,null," x "]
[null,null,null,null," x "]
[null,null,null,null,{"$f":"CONCATENATE(I39682,\" \",\"x\", \" \", J39682)","v":" x "}]
[null,null,null,null," x "]
[null,null,null,null," x "]
[null,null,null,null," x "]
[null,null,null,null," x "]
[null,null,null,null," x "]
[null,null,null,null," x "]
[null,null,null,null," x "]
[null,null,null,null," x "]
[null,null,null,null," x "]
[null,null,null,null," x "]
[null,null,null,null," x "]
[null,null,null,null," x "]
[null,null,null,null," x "]
[null,null,null,null," x "]
[null,null,null,null," x "]
[null,null,null,null," x "]
[null,null,null,null," x "]
[null,null,null,null," x "]
[null,null,null,null," x "]
[null,null,null,null," x "]
[null,null,null,null," x "]
[null,null,null,null," x "]
[null,null,null,null," x "]
[null,null,null,null," x "]
[null,null,null,null," x "]
[null,null,null,null," x "]
[null,null,null,null," x "]
[null,null,null,null," x "]
[null,null,null,null," x "]
[null,null,null,null," x "]
[null,null,null,null," x "]
[null,null,null,null," x "]
[null,null,null,null,{"$f":"CONCATENATE(I40706,\" \",\"x\", \" \", J40706)","v":" x "}]
[null,null,null,null," x "]
[null,null,null,null," x "]
[null,null,null,null," x "]
[null,null,null,null," x "]
[null,null,null,null," x "]
[null,null,null,null," x "]
[null,null,null,null," x "]
[null,null,null,null," x "]
[null,null,null,null," x "]
[null,null,null,null," x "]
[null,null,null,null," x "]
[null,null,null,null," x "]
[null,null,null,null," x "]
[null,null,null,null," x "]
[null,null,null,null," x "]
[null,null,null,null," x "]
[null,null,null,null," x "]
[null,null,null,null," x "]
[null,null,null,null," x "]
[null,null,null,null," x "]
[null,null,null,null," x "]
[null,null,null,null," x "]
[null,null,null,null," x "]
[null,null,null,null," x "]
[null,null,null,null," x "]
[null,null,null,null," x "]
[null,null,null,null," x "]
[null,null,null,null," x "]
[null,null,null,null," x "]
[null,null,null,null," x "]
[null,null,null,null," x "]
[null,null,null,null," x "]
[null,null,null,null," x "]
[null,null,null,null," x "]
[null,null,null,null," x "]
[null,null,null,null," x "]
[null,null,null,null," x "]
[null,null,null,null," x "]
[null,null,null,null," x "]
[null,null,null,null," x "]
[null,null,null,null," x "]
[null,null,null,null," x "]
[null,null,null,null," x "]
[null,null,null,null," x "]
[null,null,null,null," x "]
[null,null,null,null," x "]
[null,null,null,null," x "]
[null,null,null,null," x "]
[null,null,null,null," x "]
[null,null,null,null," x "]
[null,null,null,null," x "]
[null,null,null,null," x "]
[null,null,null,null," x "]
[null,null,null,null," x "]
[null,null,null,null," x "]
[null,null,null,null," x "]
[null,null,null,null," x "]
[null,null,null,null," x "]
[null,null,null,null," x "]
[null,null,null,null," x "]
[null,null,null,null," x "]
[null,null,null,null," x "]
[null,null,null,null," x "]
[null,null,null,null," x "]
[null,null,null,null," x "]
[null,null,null,null," x "]
[null,null,null,null," x "]
[null,null,null,null," x "]
[null,null,null,null," x "]
[null,null,null,null," x "]
[null,null,null,null," x "]
[null,null,null,null," x "]
[null,null,null,null," x "]
[null,null,null,null," x "]
[null,null,null,null," x "]
[null,null,null,null," x "]
[null,null,null,null," x "]
[null,null,null,null," x "]
[null,null,null,null," x "]
[null,null,null,null," x "]
[null,null,null,null," x "]
[null,null,null,null," x "]
[null,null,null,null," x "]
[null,null,null,null," x "]
[null,null,null,null," x "]
[null,null,null,null," x "]
[null,null,null,null," x "]
[null,null,null,null," x "]
[null,null,null,null," x "]
[null,null,null,null," x "]
[null,null,null,null," x "]
[null,null,null,null," x "]
[null,null,null,null," x "]
[null,null,null,null," x "]
[null,null,null,null,{"$f":"CONCATENATE(I43714,\" \",\"x\", \" \", J43714)","v":" x "}]
[null,null,null,null," x "]
[null,null,null,null," x "]
[null,null,null,null," x "]
[null,null,null,null," x "]
[null,null,null,null," x "]
[null,null,null,null," x "]
[null,null,null,null," x "]
[null,null,null,null," x "]
[null,null,null,null," x "]
[null,null,null,null," x "]
[null,null,null,null," x "]
[null,null,null,null," x "]
[null,null,null,null," x "]
[null,null,null,null," x "]
[null,null,null,null," x "]
[null,null,null,null," x "]
[null,null,null,null," x "]
[null,null,null,null," x "]
[null,null,null,null," x "]
[null,null,null,null," x "]
[null,null,null,null," x "]
[null,null,null,null," x "]
[null,null,null,null," x "]
[null,null,null,null," x "]
[null,null,null,null," x "]
[null,null,null,null," x "]
[null,null,null,null," x "]
[null,null,null,null," x "]
[null,null,null,null," x "]
[null,null,null,null," x "]
[null,null,null,null," x "]
[null,null,null,null," x "]
[null,null,null,null," x "]
[null,null,null,null," x "]
[null,null,null,null," x "]
[null,null,null,null," x "]
[null,null,null,null," x "]
[null,null,null,null," x "]
[null,null,null,null," x "]
[null,null,null,null," x "]
[null,null,null,null," x "]
[null,null,null,null," x "]
[null,null,null,null," x "]
[null,null,null,null," x "]
[null,null,null,null," x "]
[null,null,null,null," x "]
[null,null,null,null," x "]
[null,null,null,null," x "]
[null,null,null,null," x "]
[null,null,null,null," x "]
[null,null,null,null," x "]
[null,null,null,null," x "]
[null,null,null,null," x "]
[null,null,null,null," x "]
[null,null,null,null," x "]
[null,null,null,null," x "]
[null,null,null,null," x "]
[null,null,null,null," x "]
[null,null,null,null," x "]
[null,null,null,null," x "]
[null,null,null,null," x "]
[null,null,null,null," x "]
[null,null,null,null," x "]
[null,null,null,null," x "]
[null,null,null,null," x "]
[null,null,null,null," x "]
[null,null,null,null," x "]
[null,null,null,null," x "]
[null,null,null,null," x "]
[null,null,null,null," x "]
[null,null,null,null," x "]
[null,null,null,null," x "]
[null,null,null,null," x "]
[null,null,null,null," x "]
[null,null,null,null," x "]
[null,null,null,null," x "]
[null,null,null,null," x "]
[null,null,null,null," x "]
[null,null,null,null," x "]
[null,null,null,null," x "]
[null,null,null,null," x "]
[null,null,null,null," x "]
[null,null,null,null," x "]
[null,null,null,null," x "]
[null,null,null,null," x "]
[null,null,null,null," x "]
[null,null,null,null," x "]
[null,null,null,null," x "]
[null,null,null,null," x "]
[null,null,null,null," x "]
[null,null,null,null," x "]
[null,null,null,null," x "]
[null,null,null,null," x "]
[null,null,null,null," x "]
[null,null,null,null," x "]
[null,null,null,null," x "]
[null,null,null,null," x "]
[null,null,null,null," x "]
[null,null,null,null," x "]
[null,null,null,null," x "]
[null,null,null,null," x "]
[null,null,null,null," x "]
[null,null,null,null," x "]
[null,null,null,null," x "]
[null,null,null,null," x "]
[null,null,null,null," x "]
[null,null,null,null," x "]
[null,null,null,null," x "]
[null,null,null,null," x "]
[null,null,null,null," x "]
[null,null,null,null," x "]
[null,null,null,null," x "]
[null,null,null,null," x "]
[null,null,null,null," x "]
[null,null,null,null," x "]
[null,null,null,null," x "]
[null,null,null,null," x "]
[null,null,null,null," x "]
[null,null,null,null," x "]
[null,null,null,null," x "]
[null,null,null,null," x "]
[null,null,null,null," x "]
[null,null,null,null," x "]
[null,null,null,null," x "]
[null,null,null,null," x "]
[null,null,null,null," x "]
[null,null,null,null," x "]
[null,null,null,null," x "]
[null,null,null,null," x "]
[null,null,null,null," x "]
[null,null,null,null," x "]
[null,null,null,null," x "]
[null,null,null,null," x "]
[null,null,null,null," x "]
[null,null,null,null," x "]
[null,null,null,null," x "]
[null,null,null,null," x "]
[null,null,null,null," x "]
[null,null,null,null," x "]
[null,null,null,null," x "]
[null,null,null,null," x "]
[null,null,null,null," x "]
[null,null,null,null," x "]
[null,null,null,null," x "]
[null,null,null,null," x "]
[null,null,null,null," x "]
[null,null,null,null," x "]
[null,null,null,null," x "]
[null,null,null,null," x "]
[null,null,null,null," x "]
[null,null,null,null," x "]
[null,null,null,null," x "]
[null,null,null,null," x "]
[null,null,null,null," x "]
[null,null,null,null," x "]
[null,null,null,null," x "]
[null,null,null,null," x "]
[null,null,null,null," x "]
[null,null,null,null," x "]
[null,null,null,null," x "]
[null,null,null,null," x "]
[null,null,null,null," x "]
[null,null,null,null," x "]
[null,null,null,null," x "]
[null,null,null,null," x "]
[null,null,null,null," x "]
[null,null,null,null," x "]
[null,null,null,null," x "]
[null,null,null,null," x "]
[null,null,null,null," x "]
[null,null,null,null," x "]
[null,null,null,null," x "]
[null,null,null,null," x "]
[null,null,null,null," x "]
[null,null,null,null," x "]
[null,null,null,null," x "]
[null,null,null,null," x "]
[null,null,null,null," x "]
[null,null,null,null," x "]
[null,null,null,null," x "]
[null,null,null,null," x "]
[null,null,null,null," x "]
[null,null,null,null," x "]
[null,null,null,null," x "]
[null,null,null,null," x "]
[null,null,null,null," x "]
[null,null,null,null," x "]
[null,null,null,null," x "]
[null,null,null,null," x "]
[null,null,null,null," x "]
[null,null,null,null," x "]
[null,null,null,null," x "]
[null,null,null,null," x "]
[null,null,null,null," x "]
[null,null,null,null," x "]
[null,null,null,null," x "]
[null,null,null,null," x "]
[null,null,null,null," x "]
[null,null,null,null," x "]
[null,null,null,null," x "]
[null,null,null,null," x "]
[null,null,null,null," x "]
[null,null,null,null," x "]
[null,null,null,null," x "]
[null,null,null,null," x "]
[null,null,null,null," x "]
[null,null,null,null,{"$f":"CONCATENATE(I50242,\" \",\"x\", \" \", J50242)","v":" x "}]
[null,null,null,null," x "]
[null,null,null,null," x "]
[null,null,null,null," x "]
[null,null,null,null," x "]
[null,null,null,null," x "]
[null,null,null,null," x "]
[null,null,null,null," x "]
[null,null,null,null," x "]
[null,null,null,null," x "]
[null,null,null,null," x "]
[null,null,null,null," x "]
[null,null,null,null," x "]
[null,null,null,null," x "]
[null,null,null,null," x "]
[null,null,null,null," x "]
[null,null,null,null," x "]
[null,null,null,null," x "]
[null,null,null,null," x "]
[null,null,null,null," x "]
[null,null,null,null," x "]
[null,null,null,null," x "]
[null,null,null,null," x "]
[null,null,null,null," x "]
[null,null,null,null," x "]
[null,null,null,null," x "]
[null,null,null,null," x "]
[null,null,null,null," x "]
[null,null,null,null," x "]
[null,null,null,null," x "]
[null,null,null,null," x "]
[null,null,null,null,{"$f":"CONCATENATE(I51202,\" \",\"x\", \" \", J51202)","v":" x "}]
[null,null,null,null," x "]
[null,null,null,null," x "]
[null,null,null,null," x "]
[null,null,null,null," x "]
[null,null,null,null," x "]
[null,null,null,null," x "]
[null,null,null,null," x "]
[null,null,null,null," x "]
[null,null,null,null," x "]
[null,null,null,null," x "]
[null,null,null,null," x "]
[null,null,null,null," x "]
[null,null,null,null," x "]
[null,null,null,null," x "]
[null,null,null,null," x "]
[null,null,null,null," x "]
[null,null,null,null," x "]
[null,null,null,null," x "]
[null,null,null,null," x "]
[null,null,null,null," x "]
[null,null,null,null," x "]
[null,null,null,null," x "]
[null,null,null,null," x "]
[null,null,null,null," x "]
[null,null,null,null," x "]
[null,null,null,null," x "]
[null,null,null,null," x "]
[null,null,null,null," x "]
[null,null,null,null," x "]
[null,null,null,null," x "]
[null,null,null,null," x "]
[null,null,null,null," x "]
[null,null,null,null," x "]
[null,null,null,null,{"$f":"CONCATENATE(I52290,\" \",\"x\", \" \", J52290)","v":" x "}]
[null,null,null,null," x "]
[null,null,null,null," x "]
[null,null,null,null," x "]
[null,null,null,null," x "]
[null,null,null,null," x "]
[null,null,null,null," x "]
[null,null,null,null," x "]
[null,null,null,null," x "]
[null,null,null,null," x "]
[null,null,null,null," x "]
[null,null,null,null," x "]
[null,null,null,null," x "]
[null,null,null,null," x "]
[null,null,null,null," x "]
[null,null,null,null," x "]
[null,null,null,null," x "]
[null,null,null,null," x "]
[null,null,null,null," x "]
[null,null,null,null," x "]
[null,null,null,null," x "]
[null,null,null,null," x "]
[null,null,null,null," x "]
[null,null,null,null," x "]
[null,null,null,null," x "]
[null,null,null,null," x "]
[null,null,null,null," x "]
[null,null,null,null," x "]
[null,null,null,null," x "]
[null,null,null,null," x "]
[null,null,null,null," x "]
[null,null,null,null," x "]
[null,null,null,null," x "]
[null,null,null,null," x "]
[null,null,null,null," x "]
[null,null,null,null," x "]
[null,null,null,null," x "]
[null,null,null,null," x "]
[null,null,null,null," x "]
[null,null,null,null," x "]
[null,null,null,null," x "]
[null,null,null,null," x "]
[null,null,null,null," x "]
[null,null,null,null," x "]
[null,null,null,null," x "]
[null,null,null,null," x "]
[null,null,null,null," x "]
[null,null,null,null," x "]
[null,null,null,null," x "]
[null,null,null,null," x "]
[null,null,null,null," x "]
[null,null,null,null," x "]
[null,null,null,null," x "]
[null,null,null,null," x "]
[null,null,null,null," x "]
[null,null,null,null," x "]
[null,null,null,null," x "]
[null,null,null,null," x "]
[null,null,null,null," x "]
[null,null,null,null,{"$f":"CONCATENATE(I54146,\" \",\"x\", \" \", J54146)","v":" x "}]
[null,null,null,null," x "]
[null,null,null,null," x "]
[null,null,null,null," x "]
[null,null,null,null," x "]
[null,null,null,null," x "]
[null,null,null,null," x "]
[null,null,null,null," x "]
[null,null,null,null," x "]
[null,null,null,null," x "]
[null,null,null,null," x "]
[null,null,null,null," x "]
[null,null,null,null," x "]
[null,null,null,null," x "]
[null,null,null,null," x "]
[null,null,null,null," x "]
[null,null,null,null," x "]
[null,null,null,null," x "]
[null,null,null,null," x "]
[null,null,null,null," x "]
[null,null,null,null," x "]
[null,null,null,null," x "]
[null,null,null,null," x "]
[null,null,null,null," x "]
[null,null,null,null," x "]
[null,null,null,null," x "]
[null,null,null,null," x "]
[null,null,null,null," x "]
[null,null,null,null," x "]
[null,null,null,null," x "]
[null,null,null,null," x "]
[null,null,null,null," x "]
[null,null,null,null," x "]
[null,null,null,null," x "]
[null,null,null,null," x "]
[null,null,null,null," x "]
[null,null,null,null," x "]
[null,null,null,null," x "]
[null,null,null,null," x "]
[null,null,null,null," x "]
[null,null,null,null," x "]
[null,null,null,null," x "]
[null,null,null,null," x "]
[null,null,null,null," x "]
[null,null,null,null," x "]
[null,null,null,null," x "]
[null,null,null,null," x "]
[null,null,null,null," x "]
[null,null,null,null," x "]
[null,null,null,null," x "]
[null,null,null,null," x "]
[null,null,null,null," x "]
[null,null,null,null," x "]
[null,null,null,null," x "]
[null,null,null,null," x "]
[null,null,null,null," x "]
[null,null,null,null," x "]
[null,null,null,null," x "]
[null,null,null,null," x "]
[null,null,null,null," x "]
[null,null,null,null," x "]
[null,null,null,null," x "]
[null,null,null,null," x "]
[null,null,null,null," x "]
[null,null,null,null," x "]
[null,null,null,null," x "]
[null,null,null,null," x "]
[null,null,null,null," x "]
[null,null,null,null," x "]
[null,null,null,null," x "]
[null,null,null,null," x "]
[null,null,null,null," x "]
[null,null,null,null," x "]
[null,null,null,null," x "]
[null,null,null,null," x "]
[null,null,null,null," x "]
[null,null,null,null," x "]
[null,null,null,null," x "]
[null,null,null,null," x "]
[null,null,null,null," x "]
[null,null,null,null," x "]
[null,null,null,null," x "]
[null,null,null,null," x "]
[null,null,null,null," x "]
[null,null,null,null," x "]
[null,null,null,null," x "]
[null,null,null,null," x "]
[null,null,null,null," x "]
[null,null,null,null," x "]
[null,null,null,null," x "]
[null,null,null,null," x "]
[null,null,null,null," x "]
[null,null,null,null," x "]
[null,null,null,null,{"$f":"CONCATENATE(I57090,\" \",\"x\", \" \", J57090)","v":" x "}]
[null,null,null,null," x "]
[null,null,null,null," x "]
[null,null,null,null," x "]
[null,null,null,null," x "]
[null,null,null,null," x "]
[null,null,null,null," x "]
[null,null,null,null," x "]
[null,null,null,null," x "]
[null,null,null,null," x "]
[null,null,null,null," x "]
[null,null,null,null," x "]
[null,null,null,null," x "]
[null,null,null,null," x "]
[null,null,null,null," x "]
[null,null,null,null," x "]
[null,null,null,null," x "]
[null,null,null,null," x "]
[null,null,null,null," x "]
[null,null,null,null," x "]
[null,null,null,null," x "]
[null,null,null,null," x "]
[null,null,null,null," x "]
[null,null,null,null," x "]
[null,null,null,null," x "]
[null,null,null,null," x "]
[null,null,null,null," x "]
[null,null,null,null," x "]
[null,null,null,null," x "]
[null,null,null,null," x "]
[null,null,null,null," x "]
[null,null,null,null," x "]
[null,null,null,null," x "]
[null,null,null,null," x "]
[null,null,null,null," x "]
[null,null,null,null," x "]
[null,null,null,null," x "]
[null,null,null,null," x "]
[null,null,null,null," x "]
[null,null,null,null," x "]
[null,null,null,null," x "]
[null,null,null,null," x "]
[null,null,null,null," x "]
[null,null,null,null," x "]
[null,null,null,null," x "]
[null,null,null,null," x "]
[null,null,null,null," x "]
[null,null,null,null," x "]
[null,null,null,null," x "]
[null,null,null,null," x "]
[null,null,null,null," x "]
[null,null,null,null," x "]
[null,null,null,null," x "]
[null,null,null,null," x "]
[null,null,null,null," x "]
[null,null,null,null," x "]
[null,null,null,null," x "]
[null,null,null,null," x "]
[null,null,null,null," x "]
[null,null,null,null," x "]
[null,null,null,null," x "]
[null,null,null,null," x "]
[null,null,null,null," x "]
[null,null,null,null," x "]
[null,null,null,null," x "]
[null,null,null,null," x "]
[null,null,null,null," x "]
[null,null,null,null," x "]
[null,null,null,null," x "]
[null,null,null,null," x "]
[null,null,null,null," x "]
[null,null,null,null," x "]
[null,null,null,null," x "]
[null,null,null,null," x "]
[null,null,null,null," x "]
[null,null,null,null," x "]
[null,null,null,null," x "]
[null,null,null,null," x "]
[null,null,null,null," x "]
[null,null,null,null," x "]
[null,null,null,null," x "]
[null,null,null,null," x "]
[null,null,null,null," x "]
[null,null,null,null," x "]
[null,null,null,null," x "]
[null,null,null,null," x "]
[null,null,null,null," x "]
[null,null,null,null," x "]
[null,null,null,null," x "]
[null,null,null,null," x "]
[null,null,null,null," x "]
[null,null,null,null," x "]
[null,null,null,null," x "]
[null,null,null,null," x "]
[null,null,null,null," x "]
[null,null,null,null," x "]
[null,null,null,null," x "]
[null,null,null,null," x "]
[null,null,null,null," x "]
[null,null,null,null," x "]
[null,null,null,null," x "]
[null,null,null,null," x "]
[null,null,null,null," x "]
[null,null,null,null," x "]
[null,null,null,null," x "]
[null,null,null,null," x "]
[null,null,null,null," x "]
[null,null,null,null," x "]
[null,null,null,null," x "]
[null,null,null,null," x "]
[null,null,null,null," x "]
[null,null,null,null," x "]
[null,null,null,null," x "]
[null,null,null,null," x "]
[null,null,null,null," x "]
[null,null,null,null," x "]
[null,null,null,null," x "]
[null,null,null,null," x "]
[null,null,null,null," x "]
[null,null,null,null," x "]
[null,null,null,null,{"$f":"CONCATENATE(I60866,\" \",\"x\", \" \", J60866)","v":" x "}]
[null,null,null,null," x "]
[null,null,null,null," x "]
[null,null,null,null," x "]
[null,null,null,null," x "]
[null,null,null,null," x "]
[null,null,null,null," x "]
[null,null,null,null," x "]
[null,null,null,null," x "]
[null,null,null,null," x "]
[null,null,null,null," x "]
[null,null,null,null," x "]
[null,null,null,null," x "]
[null,null,null,null," x "]
[null,null,null,null," x "]
[null,null,null,null," x "]
[null,null,null,null," x "]
[null,null,null,null," x "]
[null,null,null,null," x "]
[null,null,null,null," x "]
[null,null,null,null," x "]
[null,null,null,null," x "]
[null,null,null,null," x "]
[null,null,null,null," x "]
[null,null,null,null," x "]
[null,null,null,null," x "]
[null,null,null,null," x "]
[null,null,null,null," x "]
[null,null,null,null," x "]
[null,null,null,null," x "]
[null,null,null,null," x "]
[null,null,null,null," x "]
[null,null,null,null," x "]
[null,null,null,null," x "]
[null,null,null,null," x "]
[null,null,null,null," x "]
[null,null,null,null," x "]
[null,null,null,null," x "]
[null,null,null,null," x "]
[null,null,null,null," x "]
[null,null,null,null," x "]
[null,null,null,null," x "]
[null,null,null,null," x "]
[null,null,null,null," x "]
[null,null,null,null," x "]
[null,null,null,null," x "]
[null,null,null,null," x "]
[null,null,null,null," x "]
[null,null,null,null," x "]
[null,null,null,null," x "]
[null,null,null,null," x "]
[null,null,null,null," x "]
[null,null,null,null," x "]
[null,null,null,null," x "]
[null,null,null,null," x "]
[null,null,null,null," x "]
[null,null,null,null," x "]
[null,null,null,null," x "]
[null,null,null,null," x "]
[null,null,null,null," x "]
[null,null,null,null," x "]
[null,null,null,null," x "]
[null,null,null,null," x "]
[null,null,null,null," x "]
[null,null,null,null," x "]
[null,null,null,null," x "]
[null,null,null,null," x "]
[null,null,null,null," x "]
[null,null,null,null," x "]
[null,null,null,null," x "]
[null,null,null,null," x "]
[null,null,null,null," x "]
[null,null,null,null," x "]
[null,null,null,null," x "]
[null,null,null,null," x "]
[null,null,null,null," x "]
[null,null,null,null," x "]
[null,null,null,null," x "]
[null,null,null,null," x "]
[null,null,null,null," x "]
[null,null,null,null," x "]
[null,null,null,null," x "]
[null,null,null,null," x "]
[null,null,null,null," x "]
[null,null,null,null," x "]
[null,null,null,null," x "]
[null,null,null,null," x "]
[null,null,null,null," x "]
[null,null,null,null," x "]
[null,null,null,null," x "]
[null,null,null,null," x "]
[null,null,null,null," x "]
[null,null,null,null," x "]
[null,null,null,null," x "]
[null,null,null,null," x "]
[null,null,null,null," x "]
[null,null,null,null," x "]
[null,null,null,null," x "]
[null,null,null,null," x "]
[null,null,null,null," x "]
[null,null,null,null," x "]
[null,null,null,null," x "]
[null,null,null,null," x "]
[null,null,null,null," x "]
[null,null,null,null," x "]
[null,null,null,null," x "]
[null,null,null,null," x "]
[null,null,null,null," x "]
[null,null,null,null," x "]
[null,null,null,null," x "]
[null,null,null,null," x "]
[null,null,null,null," x "]
[null,null,null,null," x "]
[null,null,null,null," x "]
[null,null,null,null," x "]
[null,null,null,null," x "]
[null,null,null,null," x "]
[null,null,null,null," x "]
[null,null,null,null," x "]
[null,null,null,null," x "]
[null,null,null,null," x "]
[null,null,null,null," x "]
[null,null,null,null," x "]
[null,null,null,null," x "]
[null,null,null,null," x "]
[null,null,null,null," x "]
[null,null,null,null," x "]
[null,null,null,null," x "]
[null,null,null,null,{"$f":"CONCATENATE(I64898,\" \",\"x\", \" \", J64898)","v":" x "}]
[null,null,null,null," x "]
[null,null,null,null," x "]
[null,null,null,null," x "]
[null,null,null,null," x "]
[null,null,null,null," x "]
[null,null,null,null," x "]
[null,null,null,null," x "]
[null,null,null,null," x "]
[null,null,null,null," x "]
[null,null,null,null," x "]
[null,null,null,null," x "]
[null,null,null,null," x "]
[null,null,null,null," x "]
[null,null,null,null," x "]
[null,null,null,null," x "]
[null,null,null,null," x "]
[null,null,null,null," x "]
[null,null,null,null," x "]
[null,null,null,null," x "]
[null,null,null,null," x "]
[null,null,null,null," x "]
[null,null,null,null," x "]
[null,null,null,null," x "]
[null,null,null,null," x "]
[null,null,null,null," x "]
[null,null,null,null," x "]
[null,null,null,null," x "]
[null,null,null,null," x "]
[null,null,null,null," x "]
[null,null,null,null," x "]
[null,null,null,null," x "]
[null,null,null,null," x "]
[null,null,null,null," x "]
[null,null,null,null," x "]
[null,null,null,null," x "]
[null,null,null,null," x "]
[null,null,null,null," x "]
[null,null,null,null," x "]
[null,null,null,null," x "]
[null,null,null,null," x "]
[null,null,null,null," x "]
[null,null,null,null," x "]
[null,null,null,null," x "]
[null,null,null,null," x "]
[null,null,null,null," x "]
[null,null,null,null," x "]
[null,null,null,null," x "]
[null,null,null,null," x "]
[null,null,null,null," x "]
[null,null,null,null," x "]
[null,null,null,null," x "]
[null,null,null,null," x "]
[null,null,null,null," x "]
[null,null,null,null," x "]
[null,null,null,null," x "]
[null,null,null,null," x "]
[null,null,null,null," x "]
[null,null,null,null,{"$f":"CONCATENATE(I65090,\" \",\"x\", \" \", J65090)","v":" x "}]
[null,null,null,null," x "]
[null,null,null,null," x "]
[null,null,null,null," x "]
[null,null,null,null," x "]
[null,null,null,null," x "]
[null,null,null,null," x "]
[null,null,null,null," x "]
[null,null,null,null," x "]
[null,null,null,null," x "]
[null,null,null,null," x "]
[null,null,null,null," x "]
[null,null,null,null," x "]
[null,null,null,null," x "]
[null,null,null,null," x "]
[null,null,null,null," x "]
[null,null,null,null," x "]
[null,null,null,null," x "]
[null,null,null,null," x "]
[null,null,null,null," x "]
[null,null,null,null," x "]
[null,null,null,null," x "]
[null,null,null,null," x "]
[null,null,null,null," x "]
[null,null,null,null," x "]
[null,null,null,null," x "]
[null,null,null,null," x "]
[null,null,null,null," x "]
[null,null,null,null," x "]
[null,null,null,null," x "]
[null,null,null,null," x "]
[null,null,null,null," x "]
[null,null,null,null," x "]
[null,null,null,null," x "]
[null,null,null,null," x "]
[null,null,null,null," x "]
[null,null,null,null," x "]
[null,null,null,null," x "]
[null,null,null,null," x "]
[null,null,null,null," x "]
[null,null,null,null," x "]
[null,null,null,null," x "]
[null,null,null,null," x "]
[null,null,null,null," x "]
[null,null,null,null," x "]
[null,null,null,null," x "]
[null,null,null,null," x "]
[null,null,null,null," x "]
[null,null,null,null," x "]
[null,null,null,null," x "]
[null,null,null,null," x "]
[null,null,null,null," x "]
[null,null,null,null," x "]
[null,null,null,null," x "]
[null,null,null,null," x "]
[null,null,null,null," x "]
[null,null,null,null," x "]
[null,null,null,null," x "]
[null,null,null,null," x "]
[null,null,null,null," x "]
[null,null,null,null," x "]
[null,null,null,null," x "]
[null,null,null,null," x "]
[null,null,null,null," x "]
[null,null,null,null,{"$f":"CONCATENATE(I65154,\" \",\"x\", \" \", J65154)","v":" x "}]
[null,null,null,null," x "]
[null,null,null,null," x "]
[null,null,null,null," x "]
[null,null,null,null," x "]
[null,null,null,null," x "]
[null,null,null,null," x "]
[null,null,null,null," x "]
[null,null,null,null," x "]
[null,null,null,null," x "]
[null,null,null,null," x "]
[null,null,null,null," x "]
[null,null,null,null," x "]
[null,null,null,null," x "]
[null,null,null,null," x "]
[null,null,null,null," x "]
[null,null,null,null," x "]
[null,null,null,null," x "]
[null,null,null,null," x "]
[null,null,null,null," x "]
[null,null,null,null," x "]
[null,null,null,null," x "]
[null,null,null,null," x "]
[null,null,null,null," x "]
[null,null,null,null," x "]
[null,null,null,null," x "]
[null,null,null,null," x "]
[null,null,null,null," x "]
[null,null,null,null," x "]
[null,null,null,null," x "]
[null,null,null,null," x "]
[null,null,null,null," x "]
[null,null,null,null," x "]
[null,null,null,null," x "]
[null,null,null,null," x "]
[null,null,null,null," x "]
[null,null,null,null," x "]
[null,null,null,null," x "]
[null,null,null,null," x "]
[null,null,null,null," x "]
[null,null,null,null," x "]
[null,null,null,null," x "]
[null,null,null,null," x "]
[null,null,null,null," x "]
[null,null,null,null," x "]
[null,null,null,null," x "]
[null,null,null,null," x "]
[null,null,null,null," x "]
[null,null,null,null," x "]
[null,null,null,null," x "]
[null,null,null,null," x "]
[null,null,null,null," x "]
[null,null,null,null," x "]
[null,null,null,null," x "]
[null,null,null,null," x "]
[null,null,null,null," x "]
[null,null,null,null," x "]
[null,null,null,null," x "]
[null,null,null,null," x "]
[null,null,null,null," x "]
[null,null,null,null," x "]
[null,null,null,null," x "]
[null,null,null,null," x "]
[null,null,null,null," x "]
[null,null,null,null,{"$f":"CONCATENATE(I65218,\" \",\"x\", \" \", J65218)","v":" x "}]
[null,null,null,null," x "]
[null,null,null,null," x "]
[null,null,null,null," x "]
[null,null,null,null," x "]
[null,null,null,null," x "]
[null,null,null,null," x "]
[null,null,null,null," x "]
[null,null,null,null," x "]
[null,null,null,null," x "]
[null,null,null,null," x "]
[null,null,null,null," x "]
[null,null,null,null," x "]
[null,null,null,null," x "]
[null,null,null,null," x "]
[null,null,null,null," x "]
[null,null,null,null," x "]
[null,null,null,null," x "]
[null,null,null,null," x "]
[null,null,null,null," x "]
[null,null,null,null," x "]
[null,null,null,null," x "]
[null,null,null,null," x "]
[null,null,null,null," x "]
[null,null,null,null," x "]
[null,null,null,null," x "]
[null,null,null,null," x "]
[null,null,null,null," x "]
[null,null,null,null," x "]
[null,null,null,null," x "]
[null,null,null,null," x "]
[null,null,null,null," x "]
[null,null,null,null," x "]
[null,null,null,null," x "]
[null,null,null,null," x "]
[null,null,null,null," x "]
[null,null,null,null," x "]
[null,null,null,null," x "]
[null,null,null,null," x "]
[null,null,null,null," x "]
[null,null,null,null," x "]
[null,null,null,null," x "]
[null,null,null,null," x "]
[null,null,null,null," x "]
[null,null,null,null," x "]
[null,null,null,null," x "]
[null,null,null,null," x "]
[null,null,null,null," x "]
[null,null,null,null," x "]
[null,null,null,null," x "]
[null,null,null,null," x "]
[null,null,null,null," x "]
[null,null,null,null," x "]
[null,null,null,null," x "]
[null,null,null,null," x "]
[null,null,null,null," x "]
[null,null,null,null," x "]
[null,null,null,null," x "]
[null,null,null,null," x "]
[null,null,null,null," x "]
[null,null,null,null," x "]
[null,null,null,null," x "]
[null,null,null,null," x "]
[null,null,null,null," x "]
[null,null,null,null,{"$f":"CONCATENATE(I65282,\" \",\"x\", \" \", J65282)","v":" x "}]
[null,null,null,null," x "]
[null,null,null,null," x "]
[null,null,null,null," x "]
[null,null,null,null," x "]
[null,null,null,null," x "]
[null,null,null,null," x "]
[null,null,null,null," x "]
[null,null,null,null," x "]
[null,null,null,null," x "]
[null,null,null,null," x "]
[null,null,null,null," x "]
[null,null,null,null," x "]
[null,null,null,null," x "]
[null,null,null,null," x "]
[null,null,null,null," x "]
[null,null,null,null," x "]
[null,null,null,null," x "]
[null,null,null,null," x "]
[null,null,null,null," x "]
[null,null,null,null," x "]
[null,null,null,null," x "]
[null,null,null,null," x "]
[null,null,null,null," x "]
[null,null,null,null," x "]
[null,null,null,null," x "]
[null,null,null,null," x "]
[null,null,null,null," x "]
[null,null,null,null," x "]
[null,null,null,null," x "]
[null,null,null,null," x "]
[null,null,null,null," x "]
[null,null,null,null," x "]
[null,null,null,null," x "]
[null,null,null,null," x "]
[null,null,null,null," x "]
[null,null,null,null," x "]
[null,null,null,null," x "]
[null,null,null,null," x "]
[null,null,null,null," x "]
[null,null,null,null," x "]
[null,null,null,null," x "]
[null,null,null,null," x "]
[null,null,null,null," x "]
[null,null,null,null," x "]
[null,null,null,null," x "]
[null,null,null,null," x "]
[null,null,null,null," x "]
[null,null,null,null," x "]
[null,null,null,null," x "]
[null,null,null,null," x "]
[null,null,null,null," x "]
[null,null,null,null," x "]
[null,null,null,null," x "]
[null,null,null,null," x "]
[null,null,null,null," x "]
[null,null,null,null," x "]
[null,null,null,null," x "]
[null,null,null,null," x "]
[null,null,null,null," x "]
[null,null,null,null," x "]
[null,null,null,null," x "]
[null,null,null,null," x "]
[null,null,null,null," x "]
[null,null,null,null,{"$f":"CONCATENATE(I65346,\" \",\"x\", \" \", J65346)","v":" x "}]
[null,null,null,null," x "]
[null,null,null,null," x "]
[null,null,null,null," x "]
[null,null,null,null," x "]
[null,null,null,null," x "]
[null,null,null,null," x "]
[null,null,null,null," x "]
[null,null,null,null," x "]
[null,null,null,null," x "]
[null,null,null,null," x "]
[null,null,null,null," x "]
[null,null,null,null," x "]
[null,null,null,null," x "]
[null,null,null,null," x "]
[null,null,null,null," x "]
[null,null,null,null," x "]
[null,null,null,null," x "]
[null,null,null,null," x "]
[null,null,null,null," x "]
[null,null,null,null," x "]
[null,null,null,null," x "]
[null,null,null,null," x "]
[null,null,null,null," x "]
[null,null,null,null," x "]
[null,null,null,null," x "]
[null,null,null,null," x "]
[null,null,null,null," x "]
[null,null,null,null," x "]
[null,null,null,null," x "]
[null,null,null,null," x "]
[null,null,null,null," x "]
[null,null,null,null," x "]
[null,null,null,null," x "]
[null,null,null,null," x "]
[null,null,null,null," x "]
[null,null,null,null," x "]
[null,null,null,null," x "]
[null,null,null,null," x "]
[null,null,null,null," x "]
[null,null,null,null," x "]
[null,null,null,null," x "]
[null,null,null,null," x "]
[null,null,null,null," x "]
[null,null,null,null," x "]
[null,null,null,null," x "]
[null,null,null,null," x "]
[null,null,null,null," x "]
[null,null,null,null," x "]
[null,null,null,null," x "]
[null,null,null,null," x "]
[null,null,null,null," x "]
[null,null,null,null," x "]
[null,null,null,null," x "]
[null,null,null,null," x "]
[null,null,null,null," x "]
[null,null,null,null," x "]
[null,null,null,null," x "]
[null,null,null,null," x "]
[null,null,null,null," x "]
[null,null,null,null," x "]
[null,null,null,null," x "]
[null,null,null,null," x "]
[null,null,null,null," x "]
[null,null,null,null,{"$f":"CONCATENATE(I65410,\" \",\"x\", \" \", J65410)","v":" x "}]
[null,null,null,null," x "]
[null,null,null,null," x "]
[null,null,null,null," x "]
[null,null,null,null," x "]
[null,null,null,null," x "]
[null,null,null,null," x "]
[null,null,null,null," x "]
[null,null,null,null," x "]
[null,null,null,null," x "]
[null,null,null,null," x "]
[null,null,null,null," x "]
[null,null,null,null," x "]
[null,null,null,null," x "]
[null,null,null,null," x "]
[null,null,null,null," x "]
[null,null,null,null," x "]
[null,null,null,null," x "]
[null,null,null,null," x "]
[null,null,null,null," x "]
[null,null,null,null," x "]
[null,null,null,null," x "]
[null,null,null,null," x "]
[null,null,null,null," x "]
[null,null,null,null," x "]
[null,null,null,null," x "]
[null,null,null,null," x "]
[null,null,null,null," x "]
[null,null,null,null," x "]
[null,null,null,null," x "]
[null,null,null,null," x "]
[null,null,null,null," x "]
[null,null,null,null," x "]
[null,null,null,null," x "]
[null,null,null,null," x "]
[null,null,null,null," x "]
[null,null,null,null," x "]
[null,null,null,null," x "]
[null,null,null,null," x "]
[null,null,null,null," x "]
[null,null,null,null," x "]
[null,null,null,null," x "]
[null,null,null,null," x "]
[null,null,null,null," x "]
[null,null,null,null," x "]
[null,null,null,null," x "]
[null,null,null,null," x "]
[null,null,null,null," x "]
[null,null,null,null," x "]
[null,null,null,null," x "]
[null,null,null,null," x "]
[null,null,null,null," x "]
[null,null,null,null," x "]
[null,null,null,null," x "]
[null,null,null,null," x "]
[null,null,null,null," x "]
[null,null,null,null," x "]
[null,null,null,null," x "]
[null,null,null,null," x "]
[null,null,null,null," x "]
[null,null,null,null," x "]
[null,null,null,null," x "]
[null,null,null,null," x "]
[null,null,null,null," x "]
[null,null,null,null,{"$f":"CONCATENATE(I65474,\" \",\"x\", \" \", J65474)","v":" x "}]
[null,null,null,null," x "]
[null,null,null,null," x "]
[null,null,null,null," x "]
[null,null,null,null," x "]
[null,null,null,null," x "]
[null,null,null,null," x "]
[null,null,null,null," x "]
[null,null,null,null," x "]
[null,null,null,null," x "]
[null,null,null,null," x "]
[null,null,null,null," x "]
[null,null,null,null," x "]
[null,null,null,null," x "]
[null,null,null,null," x "]
[null,null,null,null," x "]
[null,null,null,null," x "]
[null,null,null,null," x "]
[null,null,null,null," x "]
[null,null,null,null," x "]
[null,null,null,null," x "]
[null,null,null,null," x "]
[null,null,null,null," x "]
[null,null,null,null," x "]
[null,null,null,null," x "]
[null,null,null,null," x "]
[null,null,null,null," x "]
[null,null,null,null," x "]
[null,null,null,null," x "]
[null,null,null,null," x "]
[null,null,null,null," x "]
[null,null,null,null," x "]
[null,null,null,null," x "]
[null,null,null,null," x "]
[null,null,null,null," x "]
[null,null,null,null," x "]
[null,null,null,null," x "]
[null,null,null,null," x "]
[null,null,null,null," x "]
[null,null,null,null," x "]
[null,null,null,null," x "]
[null,null,null,null," x "]
[null,null,null,null," x "]
[null,null,null,null," x "]
[null,null,null,null," x "]
[null,null,null,null," x "]
[null,null,null,null," x "]
[null,null,null,null," x "]
[null,null,null,null," x "]
[null,null,null,null," x "]
[null,null,null,null," x "]
[null,null,null,null," x "]
[null,null,null,null," x "]
[null,null,null,null," x "]
[null,null,null,null," x "]
[null,null,null,null," x "]
[null,null,null,null," x "]
[null,null,null,null," x "]
[null,null,null,null," x "]
[null,null,null,null," x "]
[null,null,null,null," x "]
[null,null,null,null," x "]
[null,null,null,null," x "]